Workbook

Sheet Январь2014
B2: Клиенты Участников торгов Фондовой биржи ММВБ
B3: 2014-01-31
B6: Динамика количества клиентов за | C6: =B3 -> 2014-01-31
B10: Количество зарегистрированных клиентов в Системе торгов (по состоянию на последний день месяца): | H10: Таблица 1
B11: Группы клиентов | E11: 2013-12-31 | F11: 2014-01-31 | G11: Изменение (ед.) | H11: Изменение (%)
B12: Физические лица | E12: 1043653 | F12: 1058132 | G12: =F12-E12 -> 14479 | H12: =F12/E12-1 -> 0.01387338512
B13: Юридические лица | E13: 35574 | F13: 36181 | G13: =F13-E13 -> 607 | H13: =F13/E13-1 -> 0.01706302356
B14: Нерезиденты | E14: 13307 | F14: 13858 | G14: 551 | H14: 0.04140677839
B15: Нерезиденты - физические лица | E15: 2564 | F15: 2651 | G15: 87 | H15: 0.03393135725
B16: Нерезиденты - юридические лица | E16: 10743 | F16: 11207 | G16: 464 | H16: 0.04319091501
B17: Клиенты, передавшие свои средства в ДУ | E17: 12458 | F17: 12716 | G17: 258 | H17: 0.0207095842
B18: Всего | E18: 1104992 | F18: 1120887 | G18: 15895 | H18: 0.01438471953
B21: Количество уникальных клиентов в Системе торгов (по состоянию на последний день месяца): | H21: Таблица 2
B22: Группы клиентов | E22: =E11 -> 2013-12-31 | F22: =F11 -> 2014-01-31 | G22: Изменение (ед.) | H22: Изменение (%)
B23: Физические лица | E23: 881844 | F23: 883068 | G23: =F23-E23 -> 1224 | H23: =F23/E23-1 -> 0.001388000599
B24: Юридические лица | E24: 19539 | F24: 19540 | G24: =F24-E24 -> 1 | H24: =F24/E24-1 -> 5.11796919e-05
B25: Нерезиденты | E25: 6957 | F25: 7004 | G25: 47 | H25: 0.00675578554
B26: Нерезиденты - физические лица | E26: 2553 | F26: 2573 | G26: 20 | H26: 0.007833920877
B27: Нерезиденты - юридические лица | E27: 4404 | F27: 4431 | G27: 27 | H27: 0.006130790191
B28: Клиенты, передавшие свои средства в ДУ | E28: 5182 | F28: 5189 | G28: 7 | H28: 0.001350829795
B29: Всего | E29: =E23+E24+E25+E28 -> 913522 | F29: 914801 | G29: =F29-E29 -> 1279 | H29: 0.001400075751
B32: Количество активных клиентов в Системе торгов (совершивших в течение месяца хотя бы одну сделку): | H32: Таблица 3
B33: Группы клиентов | E33: =EDATE(C6,-1) -> 2013-12-31 | F33: =EDATE(E33,1) -> 2014-01-31 | G33: Изменение (ед.) | H33: Изменение (%)
B34: Физические лица | E34: 57875 | F34: 54578 | G34: =F34-E34 -> -3297 | H34: =F34/E34-1 -> -0.05696760259
B35: Юридические лица | E35: 1511 | F35: 1156 | G35: -355 | H35: -0.2349437459
B36: Нерезиденты | E36: 638 | F36: 555 | G36: -83 | H36: -0.1300940439
B37: Нерезиденты - физические лица | E37: 156 | F37: 146 | G37: -10 | H37: -0.0641025641
B38: Нерезиденты - юридические лица | E38: 482 | F38: 409 | G38: -73 | H38: -0.1514522822
B39: Клиенты, передавшие свои средства в ДУ | E39: 826 | F39: 828 | G39: 2 | H39: 0.002421307506
B40: Всего | E40: 60850 | F40: 57117 | G40: -3733 | H40: -0.06134757601
B44: Изменение количества уникальных клиентов - ретроспективные данные
B48: Количество уникальных клиентов в Системе торгов (по состоянию на последний день месяца) (ежегодная статистика): | H48: Таблица 1
B49: Группы клиентов | E49: 2009-12-31 | F49: 2010-12-31 | G49: 2011-12-31 | H49: 2012-12-31 | I49: 2013-12-31
B50: Физические лица | E50: 671475 | F50: 714295 | G50: 772175 | H50: 805549 | I50: 881844
B51: Юридические лица | E51: 16364 | F51: 17170 | G51: 16850 | H51: 17821 | I51: 19539
B52: Нерезиденты | E52: 3851 | F52: 4295 | G52: 5058 | H52: 5876 | I52: 6957
B53: Клиенты, передавшие свои средства в ДУ | E53: 4717 | F53: 5348 | G53: 5242 | H53: 5261 | I53: 5182
B54: Всего | E54: 696407 | F54: 741108 | G54: 799325 | H54: 834507 | I54: 913522
B82: Количество уникальных клиентов в Системе торгов (по состоянию на последний день месяца) (за последние 6 месяцев): | H82: Таблица 2
B83: Группы клиентов | C83: =EDATE(D83,-1) -> 2013-08-30 | D83: =EDATE(E83,-1) -> 2013-09-30 | E83: =EDATE(F83,-1) -> 2013-10-30 | F83: =EDATE(G83,-1) -> 2013-11-30 | G83: =EDATE(H83,-1) -> 2013-12-31 | H83: =EDATE(E11,1) -> 2014-01-31
B84: Физические лица | C84: 882528 | D84: 872709 | E84: 876196 | F84: 878908 | G84: 881844 | H84: 883068
B85: Юридические лица | C85: 19235 | D85: 19279 | E85: 19352 | F85: 19435 | G85: 19539 | H85: 19540
B86: Нерезиденты | C86: 6722 | D86: 6763 | E86: 6810 | F86: 6874 | G86: 6957 | H86: 7004
B87: Клиенты, передавшие свои средства в ДУ | C87: 5237 | D87: 5254 | E87: 5157 | F87: 5205 | G87: 5182 | H87: 5189
B88: Всего | C88: 913722 | D88: 904005 | E88: 907515 | F88: 910422 | G88: 913522 | H88: 914801
B124: Дополнительные показатели за | C124: 2014-01-31
H127: Таблица 1
B128: Участники торгов | G128: Абсолютные показатели
B129: Количество Участников торгов, имеющих активных клиентов | G129: 448
B133: Списки ведущих операторов фондового рынка - клиенты Участников торгов за | F133: =C6 -> 2014-01-31
B136: Ведущие операторы рынка – число зарегистрированных клиентов | H136: Таблица 1
B137: (по общему количеству уникальных клиентов всех типов, зарегистрированных в системе торгов биржи, в том числе в течение месяца)
B138: Наименование Участника торгов | G138: Количество клиентов
B139: ВТБ 24 (ЗАО) | G139: 201949
B140: Сбербанк | G140: 181674
B141: ЗАО "ФИНАМ" | G141: 116221
B142: ФГ БКС | G142: 111269
B143: ОАО "АЛЬФА-БАНК" | G143: 60601
B144: ООО "АТОН" | G144: 44007
B145: ФК "ОТКРЫТИЕ" | G145: 42214
B146: ГК "АЛОР" | G146: 29482
B147: КИТ Финанс (ООО) | G147: 20360
B148: ООО "Инвестиционная палата" | G148: 19462
B151: Ведущие операторы рынка – число активных клиентов | H151: Таблица 2
B152: (по количеству уникальных клиентов, совершивших хотя бы одну сделку за месяц)
B153: Наименование Участника торгов | G153: Количество клиентов
B154: Сбербанк | G154: 9975
B155: ЗАО "ФИНАМ" | G155: 9413
B156: ФГ БКС | G156: 8599
B157: ВТБ 24 (ЗАО) | G157: 6007
B158: ОАО "АЛЬФА-БАНК" | G158: 3529
B159: ФК "ОТКРЫТИЕ" | G159: 3459
B160: ООО "АТОН" | G160: 2795
B161: ГПБ (ОАО) | G161: 1578
B162: ГК "АЛОР" | G162: 1530
B163: КИТ Финанс (ООО) | G163: 1241
B166: Ведущие операторы рынка – объем клиентских операций | H166: Таблица 3
B167: (по стоимостному объему сделок, заключенных в интересах клиентов за месяц)
B168: Наименование Участника торгов | G168: Торговый оборот, руб.
B169: ФК "ОТКРЫТИЕ" | G169: 1009857151555
B170: Сбербанк | G170: 899099744242
B171: ФГ БКС | G171: 706046621726
B172: ЗАО "ФИНАМ" | G172: 377178203227
B173: ИК "Ренессанс Капитал" | G173: 296364006200
B174: ОАО "Промсвязьбанк" | G174: 260594248398
B175: ООО "РОНИН" | G175: 148501349036
B176: ООО "ИК ВЕЛЕС Капитал" | G176: 145736842445
B177: ООО "БК РЕГИОН" | G177: 145148706614
B178: КИТ Финанс (ООО) | G178: 141041967060

Sheet Февраль2014
B2: Клиенты Участников торгов Фондовой биржи ММВБ
B3: 2014-02-28
B6: Динамика количества клиентов за | C6: =B3 -> 2014-02-28
B10: Количество зарегистрированных клиентов в Системе торгов (по состоянию на последний день месяца): | H10: Таблица 1
B11: Группы клиентов | E11: 2014-01-31 | F11: =EDATE(E11,1) -> 2014-02-28 | G11: Изменение (ед.) | H11: Изменение (%)
B12: Физические лица | E12: =Январь2014!F12 -> 1058132 | F12: 1059586 | G12: =F12-E12 -> 1454 | H12: =F12/E12-1 -> 0.001374119675
B13: Юридические лица | E13: =Январь2014!F13 -> 36181 | F13: 36016 | G13: =F13-E13 -> -165 | H13: =F13/E13-1 -> -0.004560404632
B14: Нерезиденты | E14: =Январь2014!F14 -> 13858 | F14: 12879 | G14: -979 | H14: -0.07064511474
B15: Нерезиденты - физические лица | E15: =Январь2014!F15 -> 2651 | F15: 2693 | G15: 42 | H15: 0.01584307808
B16: Нерезиденты - юридические лица | E16: =Январь2014!F16 -> 11207 | F16: 10186 | G16: -1021 | H16: -0.09110377443
B17: Клиенты, передавшие свои средства в ДУ | E17: =Январь2014!F17 -> 12716 | F17: 12831 | G17: 115 | H17: 0.009043724442
B18: Всего | E18: =Январь2014!F18 -> 1120887 | F18: 1121312 | G18: 425 | H18: 0.0003791640014
B21: Количество уникальных клиентов в Системе торгов (по состоянию на последний день месяца): | H21: Таблица 2
B22: Группы клиентов | E22: =E11 -> 2014-01-31 | F22: =F11 -> 2014-02-28 | G22: Изменение (ед.) | H22: Изменение (%)
B23: Физические лица | E23: =Январь2014!F23 -> 883068 | F23: 886594 | G23: =F23-E23 -> 3526 | H23: =F23/E23-1 -> 0.003992897489
B24: Юридические лица | E24: =Январь2014!F24 -> 19540 | F24: 19633 | G24: =F24-E24 -> 93 | H24: =F24/E24-1 -> 0.004759467758
B25: Нерезиденты | E25: =Январь2014!F25 -> 7004 | F25: 7064 | G25: 60 | H25: 0.008566533409
B26: Нерезиденты - физические лица | E26: =Январь2014!F26 -> 2573 | F26: 2621 | G26: 48 | H26: 0.01865526623
B27: Нерезиденты - юридические лица | E27: =Январь2014!F27 -> 4431 | F27: 4443 | G27: 12 | H27: 0.002708192282
B28: Клиенты, передавшие свои средства в ДУ | E28: =Январь2014!F28 -> 5189 | F28: 5217 | G28: 28 | H28: 0.005396030064
B29: Всего | E29: =Январь2014!F29 -> 914801 | F29: 918508 | G29: 3707 | H29: 0.004052247429
B32: Количество активных клиентов в Системе торгов (совершивших в течение месяца хотя бы одну сделку): | H32: Таблица 3
B33: Группы клиентов | E33: =EDATE(C6,-1) -> 2014-01-28 | F33: =EDATE(E33,1) -> 2014-02-28 | G33: Изменение (ед.) | H33: Изменение (%)
B34: Физические лица | E34: =Январь2014!F34 -> 54578 | F34: 57539 | G34: =F34-E34 -> 2961 | H34: =F34/E34-1 -> 0.05425262926
B35: Юридические лица | E35: =Январь2014!F35 -> 1156 | F35: 1323 | G35: 167 | H35: 0.1444636678
B36: Нерезиденты | E36: =Январь2014!F36 -> 555 | F36: 602 | G36: 47 | H36: 0.08468468468
B37: Нерезиденты - физические лица | E37: =Январь2014!F37 -> 146 | F37: 156 | G37: 10 | H37: 0.06849315068
B38: Нерезиденты - юридические лица | E38: =Январь2014!F38 -> 409 | F38: 446 | G38: 37 | H38: 0.09046454768
B39: Клиенты, передавшие свои средства в ДУ | E39: =Январь2014!F39 -> 828 | F39: 764 | G39: -64 | H39: -0.07729468599
B40: Всего | E40: =Январь2014!F40 -> 57117 | F40: 60228 | G40: 3111 | H40: 0.05446714638
B44: Изменение количества уникальных клиентов - ретроспективные данные
B48: Количество уникальных клиентов в Системе торгов (по состоянию на последний день месяца) (ежегодная статистика): | H48: Таблица 1
B49: Группы клиентов | E49: 2009-12-31 | F49: 2010-12-31 | G49: 2011-12-31 | H49: 2012-12-31 | I49: 2013-12-31
B50: Физические лица | E50: 671475 | F50: 714295 | G50: 772175 | H50: 805549 | I50: 881844
B51: Юридические лица | E51: 16364 | F51: 17170 | G51: 16850 | H51: 17821 | I51: 19539
B52: Нерезиденты | E52: 3851 | F52: 4295 | G52: 5058 | H52: 5876 | I52: 6957
B53: Клиенты, передавшие свои средства в ДУ | E53: 4717 | F53: 5348 | G53: 5242 | H53: 5261 | I53: 5182
B54: Всего | E54: 696407 | F54: 741108 | G54: 799325 | H54: 834507 | I54: 913522
B82: Количество уникальных клиентов в Системе торгов (по состоянию на последний день месяца) (за последние 6 месяцев): | H82: Таблица 2
B83: Группы клиентов | C83: =EDATE(D83,-1) -> 2013-09-28 | D83: =EDATE(E83,-1) -> 2013-10-28 | E83: =EDATE(F83,-1) -> 2013-11-28 | F83: =EDATE(G83,-1) -> 2013-12-28 | G83: =EDATE(H83,-1) -> 2014-01-28 | H83: =EDATE(E11,1) -> 2014-02-28
B84: Физические лица | C84: 872709 | D84: 876196 | E84: 878908 | F84: 881844 | G84: 883068 | H84: 886594
B85: Юридические лица | C85: 19279 | D85: 19352 | E85: 19435 | F85: 19539 | G85: 19540 | H85: 19633
B86: Нерезиденты | C86: 6763 | D86: 6810 | E86: 6874 | F86: 6957 | G86: 7004 | H86: 7064
B87: Клиенты, передавшие свои средства в ДУ | C87: 5254 | D87: 5157 | E87: 5205 | F87: 5182 | G87: 5189 | H87: 5217
B88: Всего | C88: 904005 | D88: 907515 | E88: 910422 | F88: 913522 | G88: 914801 | H88: 918508
B124: Дополнительные показатели за | C124: 2014-02-28
H127: Таблица 1
B128: Участники торгов | G128: Абсолютные показатели
B129: Количество Участников торгов, имеющих активных клиентов | G129: 447
B133: Списки ведущих операторов фондового рынка - клиенты Участников торгов за | F133: =C6 -> 2014-02-28
B136: Ведущие операторы рынка – число зарегистрированных клиентов | H136: Таблица 1
B137: (по общему количеству уникальных клиентов всех типов, зарегистрированных в системе торгов биржи, в том числе в течение месяца)
B138: Наименование Участника торгов | G138: Количество клиентов
B139: ВТБ 24 (ЗАО) | G139: 202792
B140: Сбербанк | G140: 182430
B141: ЗАО "ФИНАМ" | G141: 116732
B142: ФГ БКС | G142: 111812
B143: ОАО "АЛЬФА-БАНК" | G143: 60661
B144: ООО "АТОН" | G144: 44161
B145: ФК "ОТКРЫТИЕ" | G145: 41021
B146: ГК "АЛОР" | G146: 29554
B147: КИТ Финанс (ООО) | G147: 20464
B148: ООО "Инвестиционная палата" | G148: 19462
B151: Ведущие операторы рынка – число активных клиентов | H151: Таблица 2
B152: (по количеству уникальных клиентов, совершивших хотя бы одну сделку за месяц)
B153: Наименование Участника торгов | G153: Количество клиентов
B154: Сбербанк | G154: 10296
B155: ЗАО "ФИНАМ" | G155: 9706
B156: ФГ БКС | G156: 9193
B157: ВТБ 24 (ЗАО) | G157: 6422
B158: ОАО "АЛЬФА-БАНК" | G158: 3777
B159: ФК "ОТКРЫТИЕ" | G159: 3608
B160: ООО "АТОН" | G160: 2890
B161: ГПБ (ОАО) | G161: 1708
B162: ГК "АЛОР" | G162: 1574
B163: ООО "НЭТТРЭЙДЕР" | G163: 1305
B166: Ведущие операторы рынка – объем клиентских операций | H166: Таблица 3
B167: (по стоимостному объему сделок, заключенных в интересах клиентов за месяц)
B168: Наименование Участника торгов | G168: Торговый оборот, руб.
B169: ФК "ОТКРЫТИЕ" | G169: 1067269146384
B170: Сбербанк | G170: 965232935522
B171: ФГ БКС | G171: 899417858441
B172: ЗАО "ФИНАМ" | G172: 345528173060
B173: ИК "Ренессанс Капитал" | G173: 294341396752
B174: ОАО "Промсвязьбанк" | G174: 288553254566
B175: ООО "ИК ВЕЛЕС Капитал" | G175: 169675732529
B176: ООО "БК РЕГИОН" | G176: 165488333763
B177: ООО "РОНИН" | G177: 143698884230
B178: ГК "АЛОР" | G178: 124731017896

Sheet Март2014
B2: Клиенты Участников торгов Фондовой биржи ММВБ
B3: 2014-03-31
B6: Динамика количества клиентов за | C6: =B3 -> 2014-03-31
B10: Количество зарегистрированных клиентов в Системе торгов (по состоянию на последний день месяца): | H10: Таблица 1
B11: Группы клиентов | E11: 2014-02-28 | F11: =EDATE(E11,1) -> 2014-03-28 | G11: Изменение (ед.) | H11: Изменение (%)
B12: Физические лица | E12: =Февраль2014!F12 -> 1059586 | F12: 1067622 | G12: =F12-E12 -> 8036 | H12: =F12/E12-1 -> 0.007584094165
B13: Юридические лица | E13: =Февраль2014!F13 -> 36016 | F13: 36005 | G13: =F13-E13 -> -11 | H13: =F13/E13-1 -> -0.0003054198134
B14: Нерезиденты | E14: =Февраль2014!F14 -> 12879 | F14: 12078 | G14: -801 | H14: -0.06219426974
B15: Нерезиденты - физические лица | E15: =Февраль2014!F15 -> 2693 | F15: 2708 | G15: 15 | H15: 0.005569996287
B16: Нерезиденты - юридические лица | E16: =Февраль2014!F16 -> 10186 | F16: 9370 | G16: -816 | H16: -0.08010995484
B17: Клиенты, передавшие свои средства в ДУ | E17: =Февраль2014!F17 -> 12831 | F17: 12896 | G17: 65 | H17: 0.00506585613
B18: Всего | E18: =Февраль2014!F18 -> 1121312 | F18: 1128601 | G18: =F18-E18 -> 7289 | H18: 0.006500420935
B21: Количество уникальных клиентов в Системе торгов (по состоянию на последний день месяца): | H21: Таблица 2
B22: Группы клиентов | E22: =E11 -> 2014-02-28 | F22: =F11 -> 2014-03-28 | G22: Изменение (ед.) | H22: Изменение (%)
B23: Физические лица | E23: =Февраль2014!F23 -> 886594 | F23: 892693 | G23: =F23-E23 -> 6099 | H23: =F23/E23-1 -> 0.006879135207
B24: Юридические лица | E24: =Февраль2014!F24 -> 19633 | F24: 19706 | G24: =F24-E24 -> 73 | H24: =F24/E24-1 -> 0.003718229512
B25: Нерезиденты | E25: =Февраль2014!F25 -> 7064 | F25: 6815 | G25: -249 | H25: -0.03524915062
B26: Нерезиденты - физические лица | E26: =Февраль2014!F26 -> 2621 | F26: 2639 | G26: 18 | H26: 0.006867607783
B27: Нерезиденты - юридические лица | E27: =Февраль2014!F27 -> 4443 | F27: 4176 | G27: -267 | H27: -0.06009453072
B28: Клиенты, передавшие свои средства в ДУ | E28: =Февраль2014!F28 -> 5217 | F28: 5226 | G28: 9 | H28: 0.001725129385
B29: Всего | E29: =Февраль2014!F29 -> 918508 | F29: 924440 | G29: 5932 | H29: 0.006458299764
B32: Количество активных клиентов в Системе торгов (совершивших в течение месяца хотя бы одну сделку): | H32: Таблица 3
B33: Группы клиентов | E33: =EDATE(C6,-1) -> 2014-02-28 | F33: =EDATE(E33,1) -> 2014-03-28 | G33: Изменение (ед.) | H33: Изменение (%)
B34: Физические лица | E34: =Февраль2014!F34 -> 57539 | F34: 75119 | G34: =F34-E34 -> 17580 | H34: =F34/E34-1 -> 0.3055319001
B35: Юридические лица | E35: =Февраль2014!F35 -> 1323 | F35: 1446 | G35: 123 | H35: 0.09297052154
B36: Нерезиденты | E36: =Февраль2014!F36 -> 602 | F36: 677 | G36: 75 | H36: 0.1245847176
B37: Нерезиденты - физические лица | E37: =Февраль2014!F37 -> 156 | F37: 221 | G37: 65 | H37: 0.4166666667
B38: Нерезиденты - юридические лица | E38: =Февраль2014!F38 -> 446 | F38: 456 | G38: 10 | H38: 0.02242152466
B39: Клиенты, передавшие свои средства в ДУ | E39: =Февраль2014!F39 -> 764 | F39: 785 | G39: 21 | H39: 0.02748691099
B40: Всего | E40: =Февраль2014!F40 -> 60228 | F40: 78027 | G40: 17799 | H40: 0.2955269974
B44: Изменение количества уникальных клиентов - ретроспективные данные
B48: Количество уникальных клиентов в Системе торгов (по состоянию на последний день месяца) (ежегодная статистика): | H48: Таблица 1
B49: Группы клиентов | E49: 2009-12-31 | F49: 2010-12-31 | G49: 2011-12-31 | H49: 2012-12-31 | I49: 2013-12-31
B50: Физические лица | E50: 671475 | F50: 714295 | G50: 772175 | H50: 805549 | I50: 881844
B51: Юридические лица | E51: 16364 | F51: 17170 | G51: 16850 | H51: 17821 | I51: 19539
B52: Нерезиденты | E52: 3851 | F52: 4295 | G52: 5058 | H52: 5876 | I52: 6957
B53: Клиенты, передавшие свои средства в ДУ | E53: 4717 | F53: 5348 | G53: 5242 | H53: 5261 | I53: 5182
B54: Всего | E54: 696407 | F54: 741108 | G54: 799325 | H54: 834507 | I54: 913522
B82: Количество уникальных клиентов в Системе торгов (по состоянию на последний день месяца) (за последние 6 месяцев): | H82: Таблица 2
B83: Группы клиентов | C83: =EDATE(D83,-1) -> 2013-10-28 | D83: =EDATE(E83,-1) -> 2013-11-28 | E83: =EDATE(F83,-1) -> 2013-12-28 | F83: =EDATE(G83,-1) -> 2014-01-28 | G83: =EDATE(H83,-1) -> 2014-02-28 | H83: =EDATE(E11,1) -> 2014-03-28
B84: Физические лица | C84: 876196 | D84: 878908 | E84: 881844 | F84: 883068 | G84: 886594 | H84: 892693
B85: Юридические лица | C85: 19352 | D85: 19435 | E85: 19539 | F85: 19540 | G85: 19633 | H85: 19706
B86: Нерезиденты | C86: 6810 | D86: 6874 | E86: 6957 | F86: 7004 | G86: 7064 | H86: 6815
B87: Клиенты, передавшие свои средства в ДУ | C87: 5157 | D87: 5205 | E87: 5182 | F87: 5189 | G87: 5217 | H87: 5226
B88: Всего | C88: 907515 | D88: 910422 | E88: 913522 | F88: 914801 | G88: 918508 | H88: 924440
B124: Дополнительные показатели за | C124: Март 2014
H127: Таблица 1
B128: Участники торгов | G128: Абсолютные показатели
B129: Количество Участников торгов, имеющих активных клиентов | G129: 451
B133: Списки ведущих операторов фондового рынка - клиенты Участников торгов за | F133: =C6 -> 2014-03-31
B136: Ведущие операторы рынка – число зарегистрированных клиентов | H136: Таблица 1
B137: (по общему количеству уникальных клиентов всех типов, зарегистрированных в системе торгов биржи, в том числе в течение месяца)
B138: Наименование Участника торгов | G138: Количество клиентов
B139: ВТБ 24 (ЗАО) | G139: 204499
B140: Сбербанк | G140: 184533
B141: ЗАО "ФИНАМ" | G141: 117755
B142: ФГ БКС | G142: 112852
B143: ОАО "АЛЬФА-БАНК" | G143: 60923
B144: ООО "АТОН" | G144: 44393
B145: ФК "ОТКРЫТИЕ" | G145: 42223
B146: ГК "АЛОР" | G146: 29651
B147: КИТ Финанс (ООО) | G147: 20591
B148: ООО "Инвестиционная палата" | G148: 19462
B151: Ведущие операторы рынка – число активных клиентов | H151: Таблица 2
B152: (по количеству уникальных клиентов, совершивших хотя бы одну сделку за месяц)
B153: Наименование Участника торгов | G153: Количество клиентов
B154: Сбербанк | G154: 13963
B155: ЗАО "ФИНАМ" | G155: 12487
B156: ФГ БКС | G156: 11555
B157: ВТБ 24 (ЗАО) | G157: 8753
B158: ОАО "АЛЬФА-БАНК" | G158: 5302
B159: ФК "ОТКРЫТИЕ" | G159: 4741
B160: ООО "АТОН" | G160: 3763
B161: ГПБ (ОАО) | G161: 2069
B162: ГК "АЛОР" | G162: 2031
B163: ООО "НЭТТРЭЙДЕР" | G163: 1728
B166: Ведущие операторы рынка – объем клиентских операций | H166: Таблица 3
B167: (по стоимостному объему сделок, заключенных в интересах клиентов за месяц)
B168: Наименование Участника торгов | G168: Торговый оборот, руб.
B169: ФК "ОТКРЫТИЕ" | G169: 1188338579989
B170: ФГ БКС | G170: 1128403242380
B171: Сбербанк | G171: 1030966558200
B172: ЗАО "ФИНАМ" | G172: 416114026090
B173: ИК "Ренессанс Капитал" | G173: 336136799403
B174: ОАО "Промсвязьбанк" | G174: 227720308881
B175: ООО "АТОН" | G175: 156093730483
B176: ООО "ИК ВЕЛЕС Капитал" | G176: 147386508543
B177: ЗАО "БАНК КРЕДИТ СВИСС (МОСКВА)" | G177: 136876440028
B178: ВТБ 24 (ЗАО) | G178: 129759646717

Sheet Апрель2014
B2: Клиенты Участников торгов Фондовой биржи ММВБ
B3: 2014-04-30
B6: Динамика количества клиентов за | C6: =B3 -> 2014-04-30
B10: Количество зарегистрированных клиентов в Системе торгов (по состоянию на последний день месяца): | H10: Таблица 1
B11: Группы клиентов | E11: 2014-03-31 | F11: =EDATE(E11,1) -> 2014-04-30 | G11: Изменение (ед.) | H11: Изменение (%)
B12: Физические лица | E12: =Март2014!F12 -> 1067622 | F12: 1070790 | G12: =F12-E12 -> 3168 | H12: =F12/E12-1 -> 0.002967342374
B13: Юридические лица | E13: =Март2014!F13 -> 36005 | F13: 36048 | G13: =F13-E13 -> 43 | H13: =F13/E13-1 -> 0.001194278572
B14: Нерезиденты | E14: =Март2014!F14 -> 12078 | F14: 12203 | G14: 125 | H14: 0.0103493956
B15: Нерезиденты - физические лица | E15: =Март2014!F15 -> 2708 | F15: 2745 | G15: 37 | H15: 0.01366322009
B16: Нерезиденты - юридические лица | E16: =Март2014!F16 -> 9370 | F16: 9458 | G16: 88 | H16: 0.00939167556
B17: Клиенты, передавшие свои средства в ДУ | E17: =Март2014!F17 -> 12896 | F17: 12887 | G17: -9 | H17: -0.0006978908189
B18: Всего | E18: =Март2014!F18 -> 1128601 | F18: 1131928 | G18: =F18-E18 -> 3327 | H18: 0.002947897441
B21: Количество уникальных клиентов в Системе торгов (по состоянию на последний день месяца): | H21: Таблица 2
B22: Группы клиентов | E22: =E11 -> 2014-03-31 | F22: =F11 -> 2014-04-30 | G22: Изменение (ед.) | H22: Изменение (%)
B23: Физические лица | E23: =Март2014!F23 -> 892693 | F23: 896413 | G23: =F23-E23 -> 3720 | H23: =F23/E23-1 -> 0.004167166092
B24: Юридические лица | E24: =Март2014!F24 -> 19706 | F24: 19733 | G24: =F24-E24 -> 27 | H24: =F24/E24-1 -> 0.001370141074
B25: Нерезиденты | E25: =Март2014!F25 -> 6815 | F25: 6885 | G25: 70 | H25: 0.01027146001
B26: Нерезиденты - физические лица | E26: =Март2014!F26 -> 2639 | F26: 2677 | G26: 38 | H26: 0.01439939371
B27: Нерезиденты - юридические лица | E27: =Март2014!F27 -> 4176 | F27: 4208 | G27: 32 | H27: 0.007662835249
B28: Клиенты, передавшие свои средства в ДУ | E28: =Март2014!F28 -> 5226 | F28: 5192 | G28: -34 | H28: -0.006505931879
B29: Всего | E29: =Март2014!F29 -> 924440 | F29: 928223 | G29: 3783 | H29: 0.004092207174
B32: Количество активных клиентов в Системе торгов (совершивших в течение месяца хотя бы одну сделку): | H32: Таблица 3
B33: Группы клиентов | E33: =EDATE(C6,-1) -> 2014-03-30 | F33: =EDATE(E33,1) -> 2014-04-30 | G33: Изменение (ед.) | H33: Изменение (%)
B34: Физические лица | E34: =Март2014!F34 -> 75119 | F34: 60315 | G34: =F34-E34 -> -14804 | H34: =F34/E34-1 -> -0.197073976
B35: Юридические лица | E35: =Март2014!F35 -> 1446 | F35: 1272 | G35: -174 | H35: -0.1203319502
B36: Нерезиденты | E36: =Март2014!F36 -> 677 | F36: 581 | G36: -96 | H36: -0.1418020679
B37: Нерезиденты - физические лица | E37: =Март2014!F37 -> 221 | F37: 177 | G37: -44 | H37: -0.1990950226
B38: Нерезиденты - юридические лица | E38: =Март2014!F38 -> 456 | F38: 404 | G38: -52 | H38: -0.1140350877
B39: Клиенты, передавшие свои средства в ДУ | E39: =Март2014!F39 -> 785 | F39: 740 | G39: -45 | H39: -0.05732484076
B40: Всего | E40: =Март2014!F40 -> 78027 | F40: 62908 | G40: -15119 | H40: -0.1937662604
B44: Изменение количества уникальных клиентов - ретроспективные данные
B48: Количество уникальных клиентов в Системе торгов (по состоянию на последний день месяца) (ежегодная статистика): | H48: Таблица 1
B49: Группы клиентов | E49: 2009-12-31 | F49: 2010-12-31 | G49: 2011-12-31 | H49: 2012-12-31 | I49: 2013-12-31
B50: Физические лица | E50: 671475 | F50: 714295 | G50: 772175 | H50: 805549 | I50: 881844
B51: Юридические лица | E51: 16364 | F51: 17170 | G51: 16850 | H51: 17821 | I51: 19539
B52: Нерезиденты | E52: 3851 | F52: 4295 | G52: 5058 | H52: 5876 | I52: 6957
B53: Клиенты, передавшие свои средства в ДУ | E53: 4717 | F53: 5348 | G53: 5242 | H53: 5261 | I53: 5182
B54: Всего | E54: 696407 | F54: 741108 | G54: 799325 | H54: 834507 | I54: 913522
B82: Количество уникальных клиентов в Системе торгов (по состоянию на последний день месяца) (за последние 6 месяцев): | H82: Таблица 2
B83: Группы клиентов | C83: =EDATE(D83,-1) -> 2013-11-28 | D83: =EDATE(E83,-1) -> 2013-12-28 | E83: =EDATE(F83,-1) -> 2014-01-28 | F83: =EDATE(G83,-1) -> 2014-02-28 | G83: =EDATE(H83,-1) -> 2014-03-30 | H83: =EDATE(E11,1) -> 2014-04-30
B84: Физические лица | C84: 878908 | D84: 881844 | E84: 883068 | F84: 886594 | G84: 892693 | H84: 896413
B85: Юридические лица | C85: 19435 | D85: 19539 | E85: 19540 | F85: 19633 | G85: 19706 | H85: 19733
B86: Нерезиденты | C86: 6874 | D86: 6957 | E86: 7004 | F86: 7064 | G86: 6815 | H86: 6885
B87: Клиенты, передавшие свои средства в ДУ | C87: 5205 | D87: 5182 | E87: 5189 | F87: 5217 | G87: 5226 | H87: 5192
B88: Всего | C88: 910422 | D88: 913522 | E88: 914801 | F88: 918508 | G88: 924440 | H88: 928223
B124: Дополнительные показатели за | C124: Апрель 2014
H127: Таблица 1
B128: Участники торгов | G128: Абсолютные показатели
B129: Количество Участников торгов, имеющих активных клиентов | G129: 449
B133: Списки ведущих операторов фондового рынка - клиенты Участников торгов за | F133: =C6 -> 2014-04-30
B136: Ведущие операторы рынка – число зарегистрированных клиентов | H136: Таблица 1
B137: (по общему количеству уникальных клиентов всех типов, зарегистрированных в системе торгов биржи, в том числе в течение месяца)
B138: Наименование Участника торгов | G138: Количество клиентов
B139: ВТБ 24 (ЗАО) | G139: 205346
B140: Сбербанк | G140: 183927
B141: ЗАО "ФИНАМ" | G141: 118314
B142: ФГ БКС | G142: 113406
B143: ОАО "АЛЬФА-БАНК" | G143: 60967
B144: ООО "АТОН" | G144: 44561
B145: ФК "ОТКРЫТИЕ" | G145: 43040
B146: ГК "АЛОР" | G146: 29741
B147: КИТ Финанс (ООО) | G147: 20713
B148: ООО "Инвестиционная палата" | G148: 19624
B151: Ведущие операторы рынка – число активных клиентов | H151: Таблица 2
B152: (по количеству уникальных клиентов, совершивших хотя бы одну сделку за месяц)
B153: Наименование Участника торгов | G153: Количество клиентов
B154: Сбербанк | G154: 11002
B155: ЗАО "ФИНАМ" | G155: 9589
B156: ФГ БКС | G156: 9566
B157: ВТБ 24 (ЗАО) | G157: 7043
B158: ОАО "АЛЬФА-БАНК" | G158: 4175
B159: ФК "ОТКРЫТИЕ" | G159: 4022
B160: ООО "АТОН" | G160: 2951
B161: ГК "АЛОР" | G161: 1997
B162: ГПБ (ОАО) | G162: 1814
B163: КИТ Финанс (ООО) | G163: 1297
B166: Ведущие операторы рынка – объем клиентских операций | H166: Таблица 3
B167: (по стоимостному объему сделок, заключенных в интересах клиентов за месяц)
B168: Наименование Участника торгов | G168: Торговый оборот, руб.
B169: ФК "ОТКРЫТИЕ" | G169: 1080198210932
B170: ФГ БКС | G170: 759135666017
B171: Сбербанк | G171: 749728056526
B172: ЗАО "ФИНАМ" | G172: 425738188731
B173: ИК "Ренессанс Капитал" | G173: 374815260421
B174: ОАО "Промсвязьбанк" | G174: 238904786404
B175: ООО "БК РЕГИОН" | G175: 225178335041
B176: ООО "ИК ВЕЛЕС Капитал" | G176: 153215848866
B177: ГК "АЛОР" | G177: 122191086744
B178: ООО "АТОН" | G178: 120918262444

Sheet Май2014
B2: Клиенты Участников торгов Фондовой биржи ММВБ
B3: 2014-05-30
B6: Динамика количества клиентов за | C6: =B3 -> 2014-05-30
B10: Количество зарегистрированных клиентов в Системе торгов (по состоянию на последний день месяца): | H10: Таблица 1
B11: Группы клиентов | E11: 2014-04-30 | F11: =EDATE(E11,1) -> 2014-05-30 | G11: Изменение (ед.) | H11: Изменение (%)
B12: Физические лица | E12: =Апрель2014!F12 -> 1070790 | F12: 1072436 | G12: =F12-E12 -> 1646 | H12: =F12/E12-1 -> 0.001537182828
B13: Юридические лица | E13: =Апрель2014!F13 -> 36048 | F13: 36077 | G13: =F13-E13 -> 29 | H13: =F13/E13-1 -> 0.0008044829117
B14: Нерезиденты | E14: =Апрель2014!F14 -> 12203 | F14: 12366 | G14: 163 | H14: 0.01335737114
B15: Нерезиденты - физические лица | E15: =Апрель2014!F15 -> 2745 | F15: 2784 | G15: 39 | H15: 0.01420765027
B16: Нерезиденты - юридические лица | E16: =Апрель2014!F16 -> 9458 | F16: 9582 | G16: 124 | H16: 0.01311059421
B17: Клиенты, передавшие свои средства в ДУ | E17: =Апрель2014!F17 -> 12887 | F17: 12871 | G17: -16 | H17: -0.001241561263
B18: Всего | E18: =Апрель2014!F18 -> 1131928 | F18: 1133750 | G18: =F18-E18 -> 1822 | H18: 0.001609643016
B21: Количество уникальных клиентов в Системе торгов (по состоянию на последний день месяца): | H21: Таблица 2
B22: Группы клиентов | E22: =E11 -> 2014-04-30 | F22: =F11 -> 2014-05-30 | G22: Изменение (ед.) | H22: Изменение (%)
B23: Физические лица | E23: =Апрель2014!F23 -> 896413 | F23: 897706 | G23: =F23-E23 -> 1293 | H23: =F23/E23-1 -> 0.001442415494
B24: Юридические лица | E24: =Апрель2014!F24 -> 19733 | F24: 19759 | G24: =F24-E24 -> 26 | H24: =F24/E24-1 -> 0.001317589824
B25: Нерезиденты | E25: =Апрель2014!F25 -> 6885 | F25: 6946 | G25: 61 | H25: 0.008859840232
B26: Нерезиденты - физические лица | E26: =Апрель2014!F26 -> 2677 | F26: 2713 | G26: 36 | H26: 0.01344788943
B27: Нерезиденты - юридические лица | E27: =Апрель2014!F27 -> 4208 | F27: 4233 | G27: 25 | H27: 0.005941064639
B28: Клиенты, передавшие свои средства в ДУ | E28: =Апрель2014!F28 -> 5192 | F28: 5159 | G28: -33 | H28: -0.006355932203
B29: Всего | E29: =Апрель2014!F29 -> 928223 | F29: 929570 | G29: 1347 | H29: 0.001451159904
B32: Количество активных клиентов в Системе торгов (совершивших в течение месяца хотя бы одну сделку): | H32: Таблица 3
B33: Группы клиентов | E33: =EDATE(C6,-1) -> 2014-04-30 | F33: =EDATE(E33,1) -> 2014-05-30 | G33: Изменение (ед.) | H33: Изменение (%)
B34: Физические лица | E34: =Апрель2014!F34 -> 60315 | F34: 57039 | G34: =F34-E34 -> -3276 | H34: =F34/E34-1 -> -0.05431484705
B35: Юридические лица | E35: =Апрель2014!F35 -> 1272 | F35: 1201 | G35: -71 | H35: -0.05581761006
B36: Нерезиденты | E36: =Апрель2014!F36 -> 581 | F36: 569 | G36: -12 | H36: -0.02065404475
B37: Нерезиденты - физические лица | E37: =Апрель2014!F37 -> 177 | F37: 163 | G37: -14 | H37: -0.0790960452
B38: Нерезиденты - юридические лица | E38: =Апрель2014!F38 -> 404 | F38: 406 | G38: 2 | H38: 0.00495049505
B39: Клиенты, передавшие свои средства в ДУ | E39: =Апрель2014!F39 -> 740 | F39: 699 | G39: -41 | H39: -0.05540540541
B40: Всего | E40: =Апрель2014!F40 -> 62908 | F40: 59508 | G40: -3400 | H40: -0.05404718001
B44: Изменение количества уникальных клиентов - ретроспективные данные
B48: Количество уникальных клиентов в Системе торгов (по состоянию на последний день месяца) (ежегодная статистика): | H48: Таблица 1
B49: Группы клиентов | E49: 2009-12-31 | F49: 2010-12-31 | G49: 2011-12-31 | H49: 2012-12-31 | I49: 2013-12-31
B50: Физические лица | E50: 671475 | F50: 714295 | G50: 772175 | H50: 805549 | I50: 881844
B51: Юридические лица | E51: 16364 | F51: 17170 | G51: 16850 | H51: 17821 | I51: 19539
B52: Нерезиденты | E52: 3851 | F52: 4295 | G52: 5058 | H52: 5876 | I52: 6957
B53: Клиенты, передавшие свои средства в ДУ | E53: 4717 | F53: 5348 | G53: 5242 | H53: 5261 | I53: 5182
B54: Всего | E54: 696407 | F54: 741108 | G54: 799325 | H54: 834507 | I54: 913522
B82: Количество уникальных клиентов в Системе торгов (по состоянию на последний день месяца) (за последние 6 месяцев): | H82: Таблица 2
B83: Группы клиентов | C83: =EDATE(D83,-1) -> 2013-12-28 | D83: =EDATE(E83,-1) -> 2014-01-28 | E83: =EDATE(F83,-1) -> 2014-02-28 | F83: =EDATE(G83,-1) -> 2014-03-30 | G83: =EDATE(H83,-1) -> 2014-04-30 | H83: =EDATE(E11,1) -> 2014-05-30
B84: Физические лица | C84: 881844 | D84: 883068 | E84: 886594 | F84: 892693 | G84: 896413 | H84: 897706
B85: Юридические лица | C85: 19539 | D85: 19540 | E85: 19633 | F85: 19706 | G85: 19733 | H85: 19759
B86: Нерезиденты | C86: 6957 | D86: 7004 | E86: 7064 | F86: 6815 | G86: 6885 | H86: 6946
B87: Клиенты, передавшие свои средства в ДУ | C87: 5182 | D87: 5189 | E87: 5217 | F87: 5226 | G87: 5192 | H87: 5159
B88: Всего | C88: 913522 | D88: 914801 | E88: 918508 | F88: 924440 | G88: 928223 | H88: 929570
B124: Дополнительные показатели за | C124: Май 2014
H127: Таблица 1
B128: Участники торгов | G128: Абсолютные показатели
B129: Количество Участников торгов, имеющих активных клиентов | G129: 441
B133: Списки ведущих операторов фондового рынка - клиенты Участников торгов за | F133: =C6 -> 2014-05-30
B136: Ведущие операторы рынка – число зарегистрированных клиентов | H136: Таблица 1
B137: (по общему количеству уникальных клиентов всех типов, зарегистрированных в системе торгов биржи, в том числе в течение месяца)
B138: Наименование Участника торгов | G138: Количество клиентов
B139: ВТБ 24 (ЗАО) | G139: 206094
B140: Сбербанк | G140: 183376
B141: ЗАО "ФИНАМ" | G141: 118725
B142: ФГ БКС | G142: 113818
B143: ОАО "АЛЬФА-БАНК" | G143: 60959
B144: ООО "АТОН" | G144: 44686
B145: ФГ "ОТКРЫТИЕ" | G145: 43604
B146: ГК "АЛОР" | G146: 29828
B147: КИТ Финанс (ООО) | G147: 20785
B148: ООО "Инвестиционная палата" | G148: 19631
B151: Ведущие операторы рынка – число активных клиентов | H151: Таблица 2
B152: (по количеству уникальных клиентов, совершивших хотя бы одну сделку за месяц)
B153: Наименование Участника торгов | G153: Количество клиентов
B154: Сбербанк | G154: 10517
B155: ЗАО "ФИНАМ" | G155: 9264
B156: ФГ БКС | G156: 9153
B157: ВТБ 24 (ЗАО) | G157: 6632
B158: ФГ "ОТКРЫТИЕ" | G158: 3902
B159: ОАО "АЛЬФА-БАНК" | G159: 3772
B160: ООО "АТОН" | G160: 2690
B161: ГПБ (ОАО) | G161: 1800
B162: ГК "АЛОР" | G162: 1355
B163: КИТ Финанс (ООО) | G163: 1241
B166: Ведущие операторы рынка – объем клиентских операций | H166: Таблица 3
B167: (по стоимостному объему сделок, заключенных в интересах клиентов за месяц)
B168: Наименование Участника торгов | G168: Торговый оборот, руб.
B169: ФГ "ОТКРЫТИЕ" | G169: 9.140254894e+11
B170: Сбербанк | G170: 7.361639605e+11
B171: ФГ БКС | G171: 6.571366624e+11
B172: ИК "Ренессанс Капитал" | G172: 4.001973158e+11
B173: ЗАО "ФИНАМ" | G173: 3.058340575e+11
B174: ОАО "Промсвязьбанк" | G174: 2.018458439e+11
B175: ООО "БК РЕГИОН" | G175: 1.725197257e+11
B176: ООО "ИК ВЕЛЕС Капитал" | G176: 1.260788159e+11
B177: ГПБ (ОАО) | G177: 1.227487853e+11
B178: ГК "АЛОР" | G178: 1.222161988e+11

Sheet Июнь2014
B2: Клиенты Участников торгов Фондовой биржи ММВБ
B3: 2014-06-30
B6: Динамика количества клиентов за | C6: =B3 -> 2014-06-30
B10: Количество зарегистрированных клиентов в Системе торгов (по состоянию на последний день месяца): | H10: Таблица 1
B11: Группы клиентов | E11: 2014-05-30 | F11: =EDATE(E11,1) -> 2014-06-30 | G11: Изменение (ед.) | H11: Изменение (%)
B12: Физические лица | E12: =Май2014!F12 -> 1072436 | F12: 1077132 | G12: =F12-E12 -> 4696 | H12: =F12/E12-1 -> 0.004378816079
B13: Юридические лица | E13: =Май2014!F13 -> 36077 | F13: 36150 | G13: =F13-E13 -> 73 | H13: =F13/E13-1 -> 0.002023449843
B14: Нерезиденты | E14: =Май2014!F14 -> 12366 | F14: 13333 | G14: 967 | H14: 0.07819828562
B15: Нерезиденты - физические лица | E15: =Май2014!F15 -> 2784 | F15: 2830 | G15: 46 | H15: 0.01652298851
B16: Нерезиденты - юридические лица | E16: =Май2014!F16 -> 9582 | F16: 10503 | G16: 921 | H16: 0.09611772073
B17: Клиенты, передавшие свои средства в ДУ | E17: =Май2014!F17 -> 12871 | F17: 12925 | G17: 54 | H17: 0.004195478207
B18: Всего | E18: =Май2014!F18 -> 1133750 | F18: 1139540 | G18: =F18-E18 -> 5790 | H18: 0.005106945976
B21: Количество уникальных клиентов в Системе торгов (по состоянию на последний день месяца): | H21: Таблица 2
B22: Группы клиентов | E22: =E11 -> 2014-05-30 | F22: =F11 -> 2014-06-30 | G22: Изменение (ед.) | H22: Изменение (%)
B23: Физические лица | E23: =Май2014!F23 -> 897706 | F23: 900250 | G23: =F23-E23 -> 2544 | H23: =F23/E23-1 -> 0.002833889937
B24: Юридические лица | E24: =Май2014!F24 -> 19759 | F24: 19811 | G24: =F24-E24 -> 52 | H24: =F24/E24-1 -> 0.002631712131
B25: Нерезиденты | E25: =Май2014!F25 -> 6946 | F25: 7125 | G25: 179 | H25: 0.02577022747
B26: Нерезиденты - физические лица | E26: =Май2014!F26 -> 2713 | F26: 2753 | G26: 40 | H26: 0.01474382602
B27: Нерезиденты - юридические лица | E27: =Май2014!F27 -> 4233 | F27: 4372 | G27: 139 | H27: 0.03283723128
B28: Клиенты, передавшие свои средства в ДУ | E28: =Май2014!F28 -> 5159 | F28: 5175 | G28: 16 | H28: 0.003101376236
B29: Всего | E29: =Май2014!F29 -> 929570 | F29: 932361 | G29: 2791 | H29: 0.003002463505
B32: Количество активных клиентов в Системе торгов (совершивших в течение месяца хотя бы одну сделку): | H32: Таблица 3
B33: Группы клиентов | E33: =EDATE(C6,-1) -> 2014-05-30 | F33: =EDATE(E33,1) -> 2014-06-30 | G33: Изменение (ед.) | H33: Изменение (%)
B34: Физические лица | E34: =Май2014!F34 -> 57039 | F34: 54480 | G34: =F34-E34 -> -2559 | H34: =F34/E34-1 -> -0.04486404039
B35: Юридические лица | E35: =Май2014!F35 -> 1201 | F35: 1276 | G35: 75 | H35: 0.06244796003
B36: Нерезиденты | E36: =Май2014!F36 -> 569 | F36: 581 | G36: 12 | H36: 0.02108963093
B37: Нерезиденты - физические лица | E37: =Май2014!F37 -> 163 | F37: 174 | G37: 11 | H37: 0.06748466258
B38: Нерезиденты - юридические лица | E38: =Май2014!F38 -> 406 | F38: 407 | G38: 1 | H38: 0.002463054187
B39: Клиенты, передавшие свои средства в ДУ | E39: =Май2014!F39 -> 699 | F39: 723 | G39: 24 | H39: 0.03433476395
B40: Всего | E40: =Май2014!F40 -> 59508 | F40: 57060 | G40: -2448 | H40: -0.04113732607
B44: Изменение количества уникальных клиентов - ретроспективные данные
B48: Количество уникальных клиентов в Системе торгов (по состоянию на последний день месяца) (ежегодная статистика): | H48: Таблица 1
B49: Группы клиентов | E49: 2009-12-31 | F49: 2010-12-31 | G49: 2011-12-31 | H49: 2012-12-31 | I49: 2013-12-31
B50: Физические лица | E50: 671475 | F50: 714295 | G50: 772175 | H50: 805549 | I50: 881844
B51: Юридические лица | E51: 16364 | F51: 17170 | G51: 16850 | H51: 17821 | I51: 19539
B52: Нерезиденты | E52: 3851 | F52: 4295 | G52: 5058 | H52: 5876 | I52: 6957
B53: Клиенты, передавшие свои средства в ДУ | E53: 4717 | F53: 5348 | G53: 5242 | H53: 5261 | I53: 5182
B54: Всего | E54: 696407 | F54: 741108 | G54: 799325 | H54: 834507 | I54: 913522
B82: Количество уникальных клиентов в Системе торгов (по состоянию на последний день месяца) (за последние 6 месяцев): | H82: Таблица 2
B83: Группы клиентов | C83: =EDATE(D83,-1) -> 2014-01-28 | D83: =EDATE(E83,-1) -> 2014-02-28 | E83: =EDATE(F83,-1) -> 2014-03-30 | F83: =EDATE(G83,-1) -> 2014-04-30 | G83: =EDATE(H83,-1) -> 2014-05-30 | H83: =EDATE(E11,1) -> 2014-06-30
B84: Физические лица | C84: 883068 | D84: 886594 | E84: 892693 | F84: 896413 | G84: 897706 | H84: 900250
B85: Юридические лица | C85: 19540 | D85: 19633 | E85: 19706 | F85: 19733 | G85: 19759 | H85: 19811
B86: Нерезиденты | C86: 7004 | D86: 7064 | E86: 6815 | F86: 6885 | G86: 6946 | H86: 7125
B87: Клиенты, передавшие свои средства в ДУ | C87: 5189 | D87: 5217 | E87: 5226 | F87: 5192 | G87: 5159 | H87: 5175
B88: Всего | C88: 914801 | D88: 918508 | E88: 924440 | F88: 928223 | G88: 929570 | H88: 932361
B124: Дополнительные показатели за | C124: Июнь 2014
H127: Таблица 1
B128: Участники торгов | G128: Абсолютные показатели
B129: Количество Участников торгов, имеющих активных клиентов | G129: 440
B133: Списки ведущих операторов фондового рынка - клиенты Участников торгов за | F133: =C6 -> 2014-06-30
B136: Ведущие операторы рынка – число зарегистрированных клиентов | H136: Таблица 1
B137: (по общему количеству уникальных клиентов всех типов, зарегистрированных в системе торгов биржи, в том числе в течение месяца)
B138: Наименование Участника торгов | G138: Количество клиентов
B139: ВТБ 24 (ЗАО) | G139: 207160
B140: Сбербанк | G140: 181819
B141: ЗАО "ФИНАМ" | G141: 119083
B142: ФГ БКС | G142: 115387
B143: ОАО "АЛЬФА-БАНК" | G143: 60985
B144: ООО "АТОН" | G144: 44792
B145: ФГ "ОТКРЫТИЕ" | G145: 44199
B146: ГК "АЛОР" | G146: 30263
B147: КИТ Финанс (ООО) | G147: 20867
B148: ООО "Инвестиционная палата" | G148: 19645
B151: Ведущие операторы рынка – число активных клиентов | H151: Таблица 2
B152: (по количеству уникальных клиентов, совершивших хотя бы одну сделку за месяц)
B153: Наименование Участника торгов | G153: Количество клиентов
B154: Сбербанк | G154: 10175
B155: ЗАО "ФИНАМ" | G155: 8748
B156: ФГ БКС | G156: 8392
B157: ВТБ 24 (ЗАО) | G157: 6341
B158: ФГ "ОТКРЫТИЕ" | G158: 3966
B159: ОАО "АЛЬФА-БАНК" | G159: 3569
B160: ООО "АТОН" | G160: 2624
B161: ГПБ (ОАО) | G161: 1757
B162: ООО "НЭТТРЭЙДЕР" | G162: 1441
B163: ГК "АЛОР" | G163: 1301
B166: Ведущие операторы рынка – объем клиентских операций | H166: Таблица 3
B167: (по стоимостному объему сделок, заключенных в интересах клиентов за месяц)
B168: Наименование Участника торгов | G168: Торговый оборот, руб.
B169: ФГ "ОТКРЫТИЕ" | G169: 7.811692109e+11
B170: ФГ БКС | G170: 5.610385259e+11
B171: Сбербанк | G171: 5.228108146e+11
B172: ИК "Ренессанс Капитал" | G172: 3.186131063e+11
B173: ЗАО "ФИНАМ" | G173: 2.748503177e+11
B174: ООО "БК РЕГИОН" | G174: 2.265327212e+11
B175: ООО "ИК ВЕЛЕС Капитал" | G175: 1.949575767e+11
B176: ОАО Банк "Петрокоммерц" | G176: 1.602452091e+11
B177: ОАО "Промсвязьбанк" | G177: 1.424322551e+11
B178: ГК "АЛОР" | G178: 1.354112949e+11

Sheet Июль2014
B2: Клиенты Участников торгов Фондовой биржи ММВБ
B3: 2014-07-31
B6: Динамика количества клиентов за | C6: =B3 -> 2014-07-31
B10: Количество зарегистрированных клиентов в Системе торгов (по состоянию на последний день месяца): | H10: Таблица 1
B11: Группы клиентов | E11: 2014-06-30 | F11: =EDATE(E11,1) -> 2014-07-30 | G11: Изменение (ед.) | H11: Изменение (%)
B12: Физические лица | E12: =Июнь2014!F12 -> 1077132 | F12: 1078961 | G12: =F12-E12 -> 1829 | H12: =F12/E12-1 -> 0.001698027725
B13: Юридические лица | E13: =Июнь2014!F13 -> 36150 | F13: 36135 | G13: =F13-E13 -> -15 | H13: =F13/E13-1 -> -0.0004149377593
B14: Нерезиденты | E14: =Июнь2014!F14 -> 13333 | F14: 12581 | G14: -752 | H14: -0.05640141004
B15: Нерезиденты - физические лица | E15: =Июнь2014!F15 -> 2830 | F15: 2873 | G15: 43 | H15: 0.01519434629
B16: Нерезиденты - юридические лица | E16: =Июнь2014!F16 -> 10503 | F16: 9708 | G16: -795 | H16: -0.07569265924
B17: Клиенты, передавшие свои средства в ДУ | E17: =Июнь2014!F17 -> 12925 | F17: 13018 | G17: 93 | H17: 0.007195357834
B18: Всего | E18: =Июнь2014!F18 -> 1139540 | F18: 1140695 | G18: =F18-E18 -> 1155 | H18: 0.001013566878
B21: Количество уникальных клиентов в Системе торгов (по состоянию на последний день месяца): | H21: Таблица 2
B22: Группы клиентов | E22: =E11 -> 2014-06-30 | F22: =F11 -> 2014-07-30 | G22: Изменение (ед.) | H22: Изменение (%)
B23: Физические лица | E23: =Июнь2014!F23 -> 900250 | F23: 901853 | G23: =F23-E23 -> 1603 | H23: =F23/E23-1 -> 0.001780616495
B24: Юридические лица | E24: =Июнь2014!F24 -> 19811 | F24: 19846 | G24: =F24-E24 -> 35 | H24: =F24/E24-1 -> 0.00176669527
B25: Нерезиденты | E25: =Июнь2014!F25 -> 7125 | F25: 7169 | G25: 44 | H25: 0.006175438596
B26: Нерезиденты - физические лица | E26: =Июнь2014!F26 -> 2753 | F26: 2800 | G26: 47 | H26: 0.01707228478
B27: Нерезиденты - юридические лица | E27: =Июнь2014!F27 -> 4372 | F27: 4369 | G27: -3 | H27: -0.0006861848124
B28: Клиенты, передавшие свои средства в ДУ | E28: =Июнь2014!F28 -> 5175 | F28: 5207 | G28: 32 | H28: 0.006183574879
B29: Всего | E29: =Июнь2014!F29 -> 932361 | F29: 934075 | G29: 1714 | H29: 0.001838343732
B32: Количество активных клиентов в Системе торгов (совершивших в течение месяца хотя бы одну сделку): | H32: Таблица 3
B33: Группы клиентов | E33: =EDATE(C6,-1) -> 2014-06-30 | F33: =EDATE(E33,1) -> 2014-07-30 | G33: Изменение (ед.) | H33: Изменение (%)
B34: Физические лица | E34: =Июнь2014!F34 -> 54480 | F34: 57118 | G34: =F34-E34 -> 2638 | H34: =F34/E34-1 -> 0.04842143906
B35: Юридические лица | E35: =Июнь2014!F35 -> 1276 | F35: 1191 | G35: -85 | H35: -0.06661442006
B36: Нерезиденты | E36: =Июнь2014!F36 -> 581 | F36: 578 | G36: -3 | H36: -0.005163511188
B37: Нерезиденты - физические лица | E37: =Июнь2014!F37 -> 174 | F37: 171 | G37: -3 | H37: -0.01724137931
B38: Нерезиденты - юридические лица | E38: =Июнь2014!F38 -> 407 | F38: 407 | G38: 0 | H38: 0
B39: Клиенты, передавшие свои средства в ДУ | E39: =Июнь2014!F39 -> 723 | F39: 727 | G39: 4 | H39: 0.005532503458
B40: Всего | E40: =Июнь2014!F40 -> 57060 | F40: 59614 | G40: 2554 | H40: 0.04475990186
B44: Изменение количества уникальных клиентов - ретроспективные данные
B48: Количество уникальных клиентов в Системе торгов (по состоянию на последний день месяца) (ежегодная статистика): | H48: Таблица 1
B49: Группы клиентов | E49: 2009-12-31 | F49: 2010-12-31 | G49: 2011-12-31 | H49: 2012-12-31 | I49: 2013-12-31
B50: Физические лица | E50: 671475 | F50: 714295 | G50: 772175 | H50: 805549 | I50: 881844
B51: Юридические лица | E51: 16364 | F51: 17170 | G51: 16850 | H51: 17821 | I51: 19539
B52: Нерезиденты | E52: 3851 | F52: 4295 | G52: 5058 | H52: 5876 | I52: 6957
B53: Клиенты, передавшие свои средства в ДУ | E53: 4717 | F53: 5348 | G53: 5242 | H53: 5261 | I53: 5182
B54: Всего | E54: 696407 | F54: 741108 | G54: 799325 | H54: 834507 | I54: 913522
B82: Количество уникальных клиентов в Системе торгов (по состоянию на последний день месяца) (за последние 6 месяцев): | H82: Таблица 2
B83: Группы клиентов | C83: =EDATE(D83,-1) -> 2014-02-28 | D83: =EDATE(E83,-1) -> 2014-03-30 | E83: =EDATE(F83,-1) -> 2014-04-30 | F83: =EDATE(G83,-1) -> 2014-05-30 | G83: =EDATE(H83,-1) -> 2014-06-30 | H83: =EDATE(E11,1) -> 2014-07-30
B84: Физические лица | C84: 886594 | D84: 892693 | E84: 896413 | F84: 897706 | G84: 900250 | H84: 901853
B85: Юридические лица | C85: 19633 | D85: 19706 | E85: 19733 | F85: 19759 | G85: 19811 | H85: 19846
B86: Нерезиденты | C86: 7064 | D86: 6815 | E86: 6885 | F86: 6946 | G86: 7125 | H86: 7169
B87: Клиенты, передавшие свои средства в ДУ | C87: 5217 | D87: 5226 | E87: 5192 | F87: 5159 | G87: 5175 | H87: 5207
B88: Всего | C88: 918508 | D88: 924440 | E88: 928223 | F88: 929570 | G88: 932361 | H88: 934075
B124: Дополнительные показатели за | C124: Июль 2014
H127: Таблица 1
B128: Участники торгов | G128: Абсолютные показатели
B129: Количество Участников торгов, имеющих активных клиентов | G129: 438
B133: Списки ведущих операторов фондового рынка - клиенты Участников торгов за | F133: =C6 -> 2014-07-31
B136: Ведущие операторы рынка – число зарегистрированных клиентов | H136: Таблица 1
B137: (по общему количеству уникальных клиентов всех типов, зарегистрированных в системе торгов биржи, в том числе в течение месяца)
B138: Наименование Участника торгов | G138: Количество клиентов
B139: ВТБ 24 (ЗАО) | G139: 207953
B140: Сбербанк | G140: 181643
B141: ЗАО "ФИНАМ" | G141: 119528
B142: ФГ БКС | G142: 115909
B143: ОАО "АЛЬФА-БАНК" | G143: 61072
B144: ООО "АТОН" | G144: 44911
B145: ФГ "ОТКРЫТИЕ" | G145: 44759
B146: ГК "АЛОР" | G146: 30321
B147: КИТ Финанс (ООО) | G147: 20946
B148: ООО "Инвестиционная палата" | G148: 19659
B151: Ведущие операторы рынка – число активных клиентов | H151: Таблица 2
B152: (по количеству уникальных клиентов, совершивших хотя бы одну сделку за месяц)
B153: Наименование Участника торгов | G153: Количество клиентов
B154: Сбербанк | G154: 10947
B155: ЗАО "ФИНАМ" | G155: 9184
B156: ФГ БКС | G156: 8726
B157: ВТБ 24 (ЗАО) | G157: 6578
B158: ФГ "ОТКРЫТИЕ" | G158: 4194
B159: ОАО "АЛЬФА-БАНК" | G159: 3653
B160: ООО "АТОН" | G160: 2661
B161: ГПБ (ОАО) | G161: 1854
B162: ГК "АЛОР" | G162: 1331
B163: ООО "НЭТТРЭЙДЕР" | G163: 1324
B166: Ведущие операторы рынка – объем клиентских операций | H166: Таблица 3
B167: (по стоимостному объему сделок, заключенных в интересах клиентов за месяц)
B168: Наименование Участника торгов | G168: Торговый оборот, руб.
B169: ФГ "ОТКРЫТИЕ" | G169: 1.122448459e+12
B170: ФГ БКС | G170: 7.425091833e+11
B171: Сбербанк | G171: 6.314423913e+11
B172: ИК "Ренессанс Капитал" | G172: 4.242562012e+11
B173: ЗАО "ФИНАМ" | G173: 3.718112009e+11
B174: ООО "БК РЕГИОН" | G174: 3.180817223e+11
B175: ООО "ИК ВЕЛЕС Капитал" | G175: 1.712864093e+11
B176: ГК "АЛОР" | G176: 1.423188065e+11
B177: ЗАО "БАНК КРЕДИТ СВИСС (МОСКВА)" | G177: 1.354410923e+11
B178: ГПБ (ОАО) | G178: 1.294354062e+11

Sheet Август2014
B2: Клиенты Участников торгов Фондовой биржи ММВБ
B3: 2014-08-31
B6: Динамика количества клиентов за | C6: =B3 -> 2014-08-31
B10: Количество зарегистрированных клиентов в Системе торгов (по состоянию на последний день месяца): | H10: Таблица 1
B11: Группы клиентов | E11: 2014-07-31 | F11: =EDATE(E11,1) -> 2014-08-31 | G11: Изменение (ед.) | H11: Изменение (%)
B12: Физические лица | E12: =Июль2014!F12 -> 1078961 | F12: 1093326 | G12: =F12-E12 -> 14365 | H12: =F12/E12-1 -> 0.01331373423
B13: Юридические лица | E13: =Июль2014!F13 -> 36135 | F13: 35687 | G13: -448 | H13: -0.01239795212
B14: Нерезиденты | E14: =Июль2014!F14 -> 12581 | F14: 12704 | G14: 123 | H14: 0.009776647325
B15: Нерезиденты - физические лица | E15: =Июль2014!F15 -> 2873 | F15: 2995 | G15: 122 | H15: 0.04246432301
B16: Нерезиденты - юридические лица | E16: =Июль2014!F16 -> 9708 | F16: 9709 | G16: 1 | H16: 0.0001030078286
B17: Клиенты, передавшие свои средства в ДУ | E17: =Июль2014!F17 -> 13018 | F17: 12967 | G17: -51 | H17: -0.003917652481
B18: Всего | E18: =Июль2014!F18 -> 1140695 | F18: 1154684 | G18: 13989 | H18: 0.01226357615
B21: Количество уникальных клиентов в Системе торгов (по состоянию на последний день месяца): | H21: Таблица 2
B22: Группы клиентов | E22: =E11 -> 2014-07-31 | F22: =F11 -> 2014-08-31 | G22: Изменение (ед.) | H22: Изменение (%)
B23: Физические лица | E23: =Июль2014!F23 -> 901853 | F23: 915943 | G23: =F23-E23 -> 14090 | H23: =F23/E23-1 -> 0.01562338873
B24: Юридические лица | E24: =Июль2014!F24 -> 19846 | F24: 19872 | G24: =F24-E24 -> 26 | H24: =F24/E24-1 -> 0.001310087675
B25: Нерезиденты | E25: =Июль2014!F25 -> 7169 | F25: 7273 | G25: 104 | H25: 0.01450690473
B26: Нерезиденты - физические лица | E26: =Июль2014!F26 -> 2800 | F26: 2920 | G26: 120 | H26: 0.04285714286
B27: Нерезиденты - юридические лица | E27: =Июль2014!F27 -> 4369 | F27: 4353 | G27: -16 | H27: -0.003662165255
B28: Клиенты, передавшие свои средства в ДУ | E28: =Июль2014!F28 -> 5207 | F28: 5173 | G28: -34 | H28: -0.006529671596
B29: Всего | E29: =Июль2014!F29 -> 934075 | F29: 948261 | G29: 14186 | H29: 0.0151872173
B32: Количество активных клиентов в Системе торгов (совершивших в течение месяца хотя бы одну сделку): | H32: Таблица 3
B33: Группы клиентов | E33: =EDATE(C6,-1) -> 2014-07-31 | F33: =EDATE(E33,1) -> 2014-08-31 | G33: Изменение (ед.) | H33: Изменение (%)
B34: Физические лица | E34: =Июль2014!F34 -> 57118 | F34: 56112 | G34: =F34-E34 -> -1006 | H34: =F34/E34-1 -> -0.01761266151
B35: Юридические лица | E35: =Июль2014!F35 -> 1191 | F35: 1143 | G35: -48 | H35: -0.040302267
B36: Нерезиденты | E36: =Июль2014!F36 -> 578 | F36: 565 | G36: -13 | H36: -0.02249134948
B37: Нерезиденты - физические лица | E37: =Июль2014!F37 -> 171 | F37: 183 | G37: 12 | H37: 0.0701754386
B38: Нерезиденты - юридические лица | E38: =Июль2014!F38 -> 407 | F38: 382 | G38: -25 | H38: -0.06142506143
B39: Клиенты, передавшие свои средства в ДУ | E39: =Июль2014!F39 -> 727 | F39: 667 | G39: -60 | H39: -0.08253094911
B40: Всего | E40: =Июль2014!F40 -> 59614 | F40: 58487 | G40: -1127 | H40: -0.01890495521
B44: Изменение количества уникальных клиентов - ретроспективные данные
B48: Количество уникальных клиентов в Системе торгов (по состоянию на последний день месяца) (ежегодная статистика): | H48: Таблица 1
B49: Группы клиентов | E49: 2009-12-31 | F49: 2010-12-31 | G49: 2011-12-31 | H49: 2012-12-31 | I49: 2013-12-31
B50: Физические лица | E50: 671475 | F50: 714295 | G50: 772175 | H50: 805549 | I50: 881844
B51: Юридические лица | E51: 16364 | F51: 17170 | G51: 16850 | H51: 17821 | I51: 19539
B52: Нерезиденты | E52: 3851 | F52: 4295 | G52: 5058 | H52: 5876 | I52: 6957
B53: Клиенты, передавшие свои средства в ДУ | E53: 4717 | F53: 5348 | G53: 5242 | H53: 5261 | I53: 5182
B54: Всего | E54: 696407 | F54: 741108 | G54: 799325 | H54: 834507 | I54: 913522
B82: Количество уникальных клиентов в Системе торгов (по состоянию на последний день месяца) (за последние 6 месяцев): | H82: Таблица 2
B83: Группы клиентов | C83: =EDATE(D83,-1) -> 2014-03-30 | D83: =EDATE(E83,-1) -> 2014-04-30 | E83: =EDATE(F83,-1) -> 2014-05-30 | F83: =EDATE(G83,-1) -> 2014-06-30 | G83: =EDATE(H83,-1) -> 2014-07-31 | H83: =EDATE(E11,1) -> 2014-08-31
B84: Физические лица | C84: 892693 | D84: 896413 | E84: 897706 | F84: 900250 | G84: 901853 | H84: 915943
B85: Юридические лица | C85: 19706 | D85: 19733 | E85: 19759 | F85: 19811 | G85: 19846 | H85: 19872
B86: Нерезиденты | C86: 6815 | D86: 6885 | E86: 6946 | F86: 7125 | G86: 7169 | H86: 7273
B87: Клиенты, передавшие свои средства в ДУ | C87: 5226 | D87: 5192 | E87: 5159 | F87: 5175 | G87: 5207 | H87: 5173
B88: Всего | C88: 924440 | D88: 928223 | E88: 929570 | F88: 932361 | G88: 934075 | H88: 948261
B124: Дополнительные показатели за | C124: Август 2014
H127: Таблица 1
B128: Участники торгов | G128: Абсолютные показатели
B129: Количество Участников торгов, имеющих активных клиентов | G129: 432
B133: Списки ведущих операторов фондового рынка - клиенты Участников торгов за | F133: =C6 -> 2014-08-31
B136: Ведущие операторы рынка – число зарегистрированных клиентов | H136: Таблица 1
B137: (по общему количеству уникальных клиентов всех типов, зарегистрированных в системе торгов биржи, в том числе в течение месяца)
B138: Наименование Участника торгов | G138: Количество клиентов
B139: ВТБ 24 (ЗАО) | G139: 208753
B140: Сбербанк | G140: 173330
B141: ЗАО "ФИНАМ" | G141: 120034
B142: ФГ БКС | G142: 116442
B143: ОАО "АЛЬФА-БАНК" | G143: 61152
B144: ФГ "ОТКРЫТИЕ" | G144: 45330
B145: ООО "АТОН" | G145: 45031
B146: ГК "АЛОР" | G146: 30370
B147: КИТ Финанс (ООО) | G147: 21007
B148: ООО "Инвестиционная палата" | G148: 19668
B151: Ведущие операторы рынка – число активных клиентов | H151: Таблица 2
B152: (по количеству уникальных клиентов, совершивших хотя бы одну сделку за месяц)
B153: Наименование Участника торгов | G153: Количество клиентов
B154: ФГ БКС | G154: 11669
B155: Сбербанк | G155: 9390
B156: ЗАО "ФИНАМ" | G156: 8445
B157: ВТБ 24 (ЗАО) | G157: 6290
B158: ФГ "ОТКРЫТИЕ" | G158: 4064
B159: ОАО "АЛЬФА-БАНК" | G159: 3588
B160: ООО "АТОН" | G160: 2500
B161: ГПБ (ОАО) | G161: 1650
B162: КИТ Финанс (ООО) | G162: 1235
B163: ГК "АЛОР" | G163: 1225
B166: Ведущие операторы рынка – объем клиентских операций | H166: Таблица 3
B167: (по стоимостному объему сделок, заключенных в интересах клиентов за месяц)
B168: Наименование Участника торгов | G168: Торговый оборот, руб.
B169: ФГ "ОТКРЫТИЕ" | G169: 916854246939
B170: ФГ БКС | G170: 699416801100
B171: ООО "Ренессанс Брокер" | G171: 520848303114
B172: Сбербанк | G172: 445777398980
B173: ЗАО "ФИНАМ" | G173: 309530012743
B174: ООО "БК РЕГИОН" | G174: 255043911692
B175: ООО "ИК ВЕЛЕС Капитал" | G175: 162002037127
B176: НБ "ТРАСТ" (ОАО) | G176: 121420943155
B177: ЗАО "БАНК КРЕДИТ СВИСС (МОСКВА)" | G177: 115040473244
B178: ГПБ (ОАО) | G178: 110328485716

Sheet Сентябрь2014
B2: Клиенты Участников торгов Фондовой биржи ММВБ
B3: 2014-09-30
B6: Динамика количества клиентов за | C6: =B3 -> 2014-09-30
B10: Количество зарегистрированных клиентов в Системе торгов (по состоянию на последний день месяца): | H10: Таблица 1
B11: Группы клиентов | E11: 2014-08-31 | F11: =EDATE(E11,1) -> 2014-09-30 | G11: Изменение (ед.) | H11: Изменение (%)
B12: Физические лица | E12: =Август2014!F12 -> 1093326 | F12: 1090843 | G12: =F12-E12 -> -2483 | H12: =F12/E12-1 -> -0.002271051818
B13: Юридические лица | E13: =Август2014!F13 -> 35687 | F13: 35622 | G13: -65 | H13: -0.001821391543
B14: Нерезиденты | E14: =Август2014!F14 -> 12704 | F14: 12839 | G14: 135 | H14: 0.01062657431
B15: Нерезиденты - физические лица | E15: =Август2014!F15 -> 2995 | F15: 3044 | G15: 49 | H15: 0.016360601
B16: Нерезиденты - юридические лица | E16: =Август2014!F16 -> 9709 | F16: 9795 | G16: 86 | H16: 0.00885776084
B17: Клиенты, передавшие свои средства в ДУ | E17: =Август2014!F17 -> 12967 | F17: 13053 | G17: 86 | H17: 0.006632220251
B18: Всего | E18: =Август2014!F18 -> 1154684 | F18: 1152357 | G18: -2327 | H18: -0.002015269979
B21: Количество уникальных клиентов в Системе торгов (по состоянию на последний день месяца): | H21: Таблица 2
B22: Группы клиентов | E22: =E11 -> 2014-08-31 | F22: =F11 -> 2014-09-30 | G22: Изменение (ед.) | H22: Изменение (%)
B23: Физические лица | E23: =Август2014!F23 -> 915943 | F23: 912627 | G23: =F23-E23 -> -3316 | H23: =F23/E23-1 -> -0.003620312618
B24: Юридические лица | E24: =Август2014!F24 -> 19872 | F24: 19829 | G24: =F24-E24 -> -43 | H24: =F24/E24-1 -> -0.002163848631
B25: Нерезиденты | E25: =Август2014!F25 -> 7273 | F25: 7332 | G25: 59 | H25: 0.008112195793
B26: Нерезиденты - физические лица | E26: =Август2014!F26 -> 2920 | F26: 2967 | G26: 47 | H26: 0.01609589041
B27: Нерезиденты - юридические лица | E27: =Август2014!F27 -> 4353 | F27: 4365 | G27: 12 | H27: 0.002756719504
B28: Клиенты, передавшие свои средства в ДУ | E28: =Август2014!F28 -> 5173 | F28: 5174 | G28: 1 | H28: 0.0001933114247
B29: Всего | E29: =Август2014!F29 -> 948261 | F29: 944962 | G29: -3299 | H29: -0.00347899998
B32: Количество активных клиентов в Системе торгов (совершивших в течение месяца хотя бы одну сделку): | H32: Таблица 3
B33: Группы клиентов | E33: =EDATE(C6,-1) -> 2014-08-30 | F33: =EDATE(E33,1) -> 2014-09-30 | G33: Изменение (ед.) | H33: Изменение (%)
B34: Физические лица | E34: =Август2014!F34 -> 56112 | F34: 54957 | G34: =F34-E34 -> -1155 | H34: =F34/E34-1 -> -0.02058383234
B35: Юридические лица | E35: =Август2014!F35 -> 1143 | F35: 1233 | G35: 90 | H35: 0.07874015748
B36: Нерезиденты | E36: =Август2014!F36 -> 565 | F36: 586 | G36: 21 | H36: 0.03716814159
B37: Нерезиденты - физические лица | E37: =Август2014!F37 -> 183 | F37: 189 | G37: 6 | H37: 0.03278688525
B38: Нерезиденты - юридические лица | E38: =Август2014!F38 -> 382 | F38: 397 | G38: 15 | H38: 0.03926701571
B39: Клиенты, передавшие свои средства в ДУ | E39: =Август2014!F39 -> 667 | F39: 630 | G39: -37 | H39: -0.05547226387
B40: Всего | E40: =Август2014!F40 -> 58487 | F40: 57406 | G40: -1081 | H40: -0.01848273975
B44: Изменение количества уникальных клиентов - ретроспективные данные
B48: Количество уникальных клиентов в Системе торгов (по состоянию на последний день месяца) (ежегодная статистика): | H48: Таблица 1
B49: Группы клиентов | E49: 2009-12-31 | F49: 2010-12-31 | G49: 2011-12-31 | H49: 2012-12-31 | I49: 2013-12-31
B50: Физические лица | E50: 671475 | F50: 714295 | G50: 772175 | H50: 805549 | I50: 881844
B51: Юридические лица | E51: 16364 | F51: 17170 | G51: 16850 | H51: 17821 | I51: 19539
B52: Нерезиденты | E52: 3851 | F52: 4295 | G52: 5058 | H52: 5876 | I52: 6957
B53: Клиенты, передавшие свои средства в ДУ | E53: 4717 | F53: 5348 | G53: 5242 | H53: 5261 | I53: 5182
B54: Всего | E54: 696407 | F54: 741108 | G54: 799325 | H54: 834507 | I54: 913522
B82: Количество уникальных клиентов в Системе торгов (по состоянию на последний день месяца) (за последние 6 месяцев): | H82: Таблица 2
B83: Группы клиентов | C83: =EDATE(D83,-1) -> 2014-04-30 | D83: =EDATE(E83,-1) -> 2014-05-30 | E83: =EDATE(F83,-1) -> 2014-06-30 | F83: =EDATE(G83,-1) -> 2014-07-30 | G83: =EDATE(H83,-1) -> 2014-08-30 | H83: =EDATE(E11,1) -> 2014-09-30
B84: Физические лица | C84: 896413 | D84: 897706 | E84: 900250 | F84: 901853 | G84: 915943 | H84: 912627
B85: Юридические лица | C85: 19733 | D85: 19759 | E85: 19811 | F85: 19846 | G85: 19872 | H85: 19829
B86: Нерезиденты | C86: 6885 | D86: 6946 | E86: 7125 | F86: 7169 | G86: 7273 | H86: 7332
B87: Клиенты, передавшие свои средства в ДУ | C87: 5192 | D87: 5159 | E87: 5175 | F87: 5207 | G87: 5173 | H87: 5174
B88: Всего | C88: 928223 | D88: 929570 | E88: 932361 | F88: 934075 | G88: 948261 | H88: 944962
B124: Дополнительные показатели за | C124: Сентябрь 2014
H127: Таблица 1
B128: Участники торгов | G128: Абсолютные показатели
B129: Количество Участников торгов, имеющих активных клиентов | G129: 433
B133: Списки ведущих операторов фондового рынка - клиенты Участников торгов за | F133: =C6 -> 2014-09-30
B136: Ведущие операторы рынка – число зарегистрированных клиентов | H136: Таблица 1
B137: (по общему количеству уникальных клиентов всех типов, зарегистрированных в системе торгов биржи, в том числе в течение месяца)
B138: Наименование Участника торгов | G138: Количество клиентов
B139: ВТБ 24 (ЗАО) | G139: 209890
B140: Сбербанк | G140: 174091
B141: ЗАО "ФИНАМ" | G141: 120585
B142: ФГ БКС | G142: 117102
B143: ОАО "АЛЬФА-БАНК" | G143: 61230
B144: ФГ "ОТКРЫТИЕ" | G144: 45841
B145: ООО "АТОН" | G145: 45171
B146: ГК "АЛОР" | G146: 30413
B147: КИТ Финанс (ООО) | G147: 21047
B148: ООО "Инвестиционная палата" | G148: 19686
B151: Ведущие операторы рынка – число активных клиентов | H151: Таблица 2
B152: (по количеству уникальных клиентов, совершивших хотя бы одну сделку за месяц)
B153: Наименование Участника торгов | G153: Количество клиентов
B154: Сбербанк | G154: 9863
B155: ЗАО "ФИНАМ" | G155: 8541
B156: ФГ БКС | G156: 8482
B157: ВТБ 24 (ЗАО) | G157: 6548
B158: ФГ "ОТКРЫТИЕ" | G158: 4361
B159: ОАО "АЛЬФА-БАНК" | G159: 3804
B160: ООО "АТОН" | G160: 2677
B161: ГПБ (ОАО) | G161: 1732
B162: ООО "НЭТТРЭЙДЕР" | G162: 1304
B163: ГК "АЛОР" | G163: 1272
B166: Ведущие операторы рынка – объем клиентских операций | H166: Таблица 3
B167: (по стоимостному объему сделок, заключенных в интересах клиентов за месяц)
B168: Наименование Участника торгов | G168: Торговый оборот, руб.
B169: ФГ "ОТКРЫТИЕ" | G169: 1.193165392e+12
B170: ФГ БКС | G170: 7.945930338e+11
B171: ООО "Ренессанс Брокер" | G171: 5.993677889e+11
B172: Сбербанк | G172: 3.563303386e+11
B173: ЗАО "ФИНАМ" | G173: 3.314712782e+11
B174: ООО "БК РЕГИОН" | G174: 2.212211952e+11
B175: ОАО "УБРиР" | G175: 1.801885789e+11
B176: ОАО Банк "Петрокоммерц" | G176: 1.709908067e+11
B177: ООО "ИК ВЕЛЕС Капитал" | G177: 1.574551865e+11
B178: НБ "ТРАСТ" (ОАО) | G178: 155198371680

Sheet Октябрь2014
B2: Клиенты Участников торгов Фондовой биржи ММВБ
B3: 2014-10-30
B6: Динамика количества клиентов за | C6: =B3 -> 2014-10-30
B10: Количество зарегистрированных клиентов в Системе торгов (по состоянию на последний день месяца): | H10: Таблица 1
B11: Группы клиентов | E11: 2014-09-30 | F11: =EDATE(E11,1) -> 2014-10-30 | G11: Изменение (ед.) | H11: Изменение (%)
B12: Физические лица | E12: =Сентябрь2014!F12 -> 1090843 | F12: 1094834 | G12: =F12-E12 -> 3991 | H12: =F12/E12-1 -> 0.003658638319
B13: Юридические лица | E13: =Сентябрь2014!F13 -> 35622 | F13: 35771 | G13: 149 | H13: 0.004182808377
B14: Нерезиденты | E14: =Сентябрь2014!F14 -> 12839 | F14: 12631 | G14: -208 | H14: -0.01620063868
B15: Нерезиденты - физические лица | E15: =Сентябрь2014!F15 -> 3044 | F15: 3076 | G15: 32 | H15: 0.01051248357
B16: Нерезиденты - юридические лица | E16: =Сентябрь2014!F16 -> 9795 | F16: 9555 | G16: -240 | H16: -0.02450229709
B17: Клиенты, передавшие свои средства в ДУ | E17: =Сентябрь2014!F17 -> 13053 | F17: 13047 | G17: -6 | H17: -0.000459664445
B18: Всего | E18: =Сентябрь2014!F18 -> 1152357 | F18: 1156283 | G18: 3926 | H18: 0.003406930318
B21: Количество уникальных клиентов в Системе торгов (по состоянию на последний день месяца): | H21: Таблица 2
B22: Группы клиентов | E22: =E11 -> 2014-09-30 | F22: =F11 -> 2014-10-30 | G22: Изменение (ед.) | H22: Изменение (%)
B23: Физические лица | E23: =Сентябрь2014!F23 -> 912627 | F23: 916147 | G23: =F23-E23 -> 3520 | H23: =F23/E23-1 -> 0.003856997437
B24: Юридические лица | E24: =Сентябрь2014!F24 -> 19829 | F24: 19927 | G24: =F24-E24 -> 98 | H24: =F24/E24-1 -> 0.004942256291
B25: Нерезиденты | E25: =Сентябрь2014!F25 -> 7332 | F25: 7352 | G25: 20 | H25: 0.002727768685
B26: Нерезиденты - физические лица | E26: =Сентябрь2014!F26 -> 2967 | F26: 3000 | G26: 33 | H26: 0.0111223458
B27: Нерезиденты - юридические лица | E27: =Сентябрь2014!F27 -> 4365 | F27: 4352 | G27: -13 | H27: -0.002978235968
B28: Клиенты, передавшие свои средства в ДУ | E28: =Сентябрь2014!F28 -> 5174 | F28: 5159 | G28: -15 | H28: -0.002899110939
B29: Всего | E29: =Сентябрь2014!F29 -> 944962 | F29: 948585 | G29: 3623 | H29: 0.003834016606
B32: Количество активных клиентов в Системе торгов (совершивших в течение месяца хотя бы одну сделку): | H32: Таблица 3
B33: Группы клиентов | E33: =EDATE(C6,-1) -> 2014-09-30 | F33: =EDATE(E33,1) -> 2014-10-30 | G33: Изменение (ед.) | H33: Изменение (%)
B34: Физические лица | E34: =Сентябрь2014!F34 -> 54957 | F34: 54686 | G34: =F34-E34 -> -271 | H34: =F34/E34-1 -> -0.004931127973
B35: Юридические лица | E35: =Сентябрь2014!F35 -> 1233 | F35: 1226 | G35: -7 | H35: -0.005677210057
B36: Нерезиденты | E36: =Сентябрь2014!F36 -> 586 | F36: 545 | G36: -41 | H36: -0.06996587031
B37: Нерезиденты - физические лица | E37: =Сентябрь2014!F37 -> 189 | F37: 176 | G37: -13 | H37: -0.06878306878
B38: Нерезиденты - юридические лица | E38: =Сентябрь2014!F38 -> 397 | F38: 369 | G38: -28 | H38: -0.07052896725
B39: Клиенты, передавшие свои средства в ДУ | E39: =Сентябрь2014!F39 -> 630 | F39: 704 | G39: 74 | H39: 0.1174603175
B40: Всего | E40: =Сентябрь2014!F40 -> 57406 | F40: 57161 | G40: -245 | H40: -0.004267846567
B44: Изменение количества уникальных клиентов - ретроспективные данные
B48: Количество уникальных клиентов в Системе торгов (по состоянию на последний день месяца) (ежегодная статистика): | H48: Таблица 1
B49: Группы клиентов | E49: 2009-12-31 | F49: 2010-12-31 | G49: 2011-12-31 | H49: 2012-12-31 | I49: 2013-12-31
B50: Физические лица | E50: 671475 | F50: 714295 | G50: 772175 | H50: 805549 | I50: 881844
B51: Юридические лица | E51: 16364 | F51: 17170 | G51: 16850 | H51: 17821 | I51: 19539
B52: Нерезиденты | E52: 3851 | F52: 4295 | G52: 5058 | H52: 5876 | I52: 6957
B53: Клиенты, передавшие свои средства в ДУ | E53: 4717 | F53: 5348 | G53: 5242 | H53: 5261 | I53: 5182
B54: Всего | E54: 696407 | F54: 741108 | G54: 799325 | H54: 834507 | I54: 913522
B82: Количество уникальных клиентов в Системе торгов (по состоянию на последний день месяца) (за последние 6 месяцев): | H82: Таблица 2
B83: Группы клиентов | C83: =EDATE(D83,-1) -> 2014-05-30 | D83: =EDATE(E83,-1) -> 2014-06-30 | E83: =EDATE(F83,-1) -> 2014-07-30 | F83: =EDATE(G83,-1) -> 2014-08-30 | G83: =EDATE(H83,-1) -> 2014-09-30 | H83: =EDATE(E11,1) -> 2014-10-30
B84: Физические лица | C84: 897706 | D84: 900250 | E84: 901853 | F84: 915943 | G84: 912627 | H84: 916147
B85: Юридические лица | C85: 19759 | D85: 19811 | E85: 19846 | F85: 19872 | G85: 19829 | H85: 19927
B86: Нерезиденты | C86: 6946 | D86: 7125 | E86: 7169 | F86: 7273 | G86: 7332 | H86: 7352
B87: Клиенты, передавшие свои средства в ДУ | C87: 5159 | D87: 5175 | E87: 5207 | F87: 5173 | G87: 5174 | H87: 5159
B88: Всего | C88: 929570 | D88: 932361 | E88: 934075 | F88: 948261 | G88: 944962 | H88: 948585
B124: Дополнительные показатели за | C124: Октябрь 2014
H127: Таблица 1
B128: Участники торгов | G128: Абсолютные показатели
B129: Количество Участников торгов, имеющих активных клиентов | G129: 438
B133: Списки ведущих операторов фондового рынка - клиенты Участников торгов за | F133: =C6 -> 2014-10-30
B136: Ведущие операторы рынка – число зарегистрированных клиентов | H136: Таблица 1
B137: (по общему количеству уникальных клиентов всех типов, зарегистрированных в системе торгов биржи, в том числе в течение месяца)
B138: Наименование Участника торгов | G138: Количество клиентов
B139: ВТБ 24 (ЗАО) | C139: ВТБ 24 (ЗАО) | D139: ВТБ 24 (ЗАО) | E139: ВТБ 24 (ЗАО) | F139: ВТБ 24 (ЗАО) | G139: 210752 | H139: 210752
B140: Сбербанк | C140: Сбербанк | D140: Сбербанк | E140: Сбербанк | F140: Сбербанк | G140: 174902 | H140: 174902
B141: ЗАО "ФИНАМ" | C141: ЗАО "ФИНАМ" | D141: ЗАО "ФИНАМ" | E141: ЗАО "ФИНАМ" | F141: ЗАО "ФИНАМ" | G141: 121285 | H141: 121285
B142: ФГ БКС | C142: ФГ БКС | D142: ФГ БКС | E142: ФГ БКС | F142: ФГ БКС | G142: 117668 | H142: 117668
B143: ОАО "АЛЬФА-БАНК" | C143: ОАО "АЛЬФА-БАНК" | D143: ОАО "АЛЬФА-БАНК" | E143: ОАО "АЛЬФА-БАНК" | F143: ОАО "АЛЬФА-БАНК" | G143: 61241 | H143: 61241
B144: ФГ "ОТКРЫТИЕ" | C144: ФГ "ОТКРЫТИЕ" | D144: ФГ "ОТКРЫТИЕ" | E144: ФГ "ОТКРЫТИЕ" | F144: ФГ "ОТКРЫТИЕ" | G144: 46940 | H144: 46940
B145: ООО "АТОН" | C145: ООО "АТОН" | D145: ООО "АТОН" | E145: ООО "АТОН" | F145: ООО "АТОН" | G145: 45328 | H145: 45328
B146: ГК "АЛОР" | C146: ГК "АЛОР" | D146: ГК "АЛОР" | E146: ГК "АЛОР" | F146: ГК "АЛОР" | G146: 30485 | H146: 30485
B147: КИТ Финанс (ООО) | C147: КИТ Финанс (ООО) | D147: КИТ Финанс (ООО) | E147: КИТ Финанс (ООО) | F147: КИТ Финанс (ООО) | G147: 21001 | H147: 21001
B148: ООО "Инвестиционная палата" | C148: ООО "Инвестиционная палата" | D148: ООО "Инвестиционная палата" | E148: ООО "Инвестиционная палата" | F148: ООО "Инвестиционная палата" | G148: 19691 | H148: 19691
B151: Ведущие операторы рынка – число активных клиентов | H151: Таблица 2
B152: (по количеству уникальных клиентов, совершивших хотя бы одну сделку за месяц)
B153: Наименование Участника торгов | G153: Количество клиентов
B154: Сбербанк | C154: Сбербанк | D154: Сбербанк | E154: Сбербанк | F154: Сбербанк | G154: 9698 | H154: 9698
B155: ЗАО "ФИНАМ" | C155: ЗАО "ФИНАМ" | D155: ЗАО "ФИНАМ" | E155: ЗАО "ФИНАМ" | F155: ЗАО "ФИНАМ" | G155: 8683 | H155: 8683
B156: ФГ БКС | C156: ФГ БКС | D156: ФГ БКС | E156: ФГ БКС | F156: ФГ БКС | G156: 8328 | H156: 8328
B157: ВТБ 24 (ЗАО) | C157: ВТБ 24 (ЗАО) | D157: ВТБ 24 (ЗАО) | E157: ВТБ 24 (ЗАО) | F157: ВТБ 24 (ЗАО) | G157: 6501 | H157: 6501
B158: ФГ "ОТКРЫТИЕ" | C158: ФГ "ОТКРЫТИЕ" | D158: ФГ "ОТКРЫТИЕ" | E158: ФГ "ОТКРЫТИЕ" | F158: ФГ "ОТКРЫТИЕ" | G158: 4346 | H158: 4346
B159: ОАО "АЛЬФА-БАНК" | C159: ОАО "АЛЬФА-БАНК" | D159: ОАО "АЛЬФА-БАНК" | E159: ОАО "АЛЬФА-БАНК" | F159: ОАО "АЛЬФА-БАНК" | G159: 3624 | H159: 3624
B160: ООО "АТОН" | C160: ООО "АТОН" | D160: ООО "АТОН" | E160: ООО "АТОН" | F160: ООО "АТОН" | G160: 2547 | H160: 2547
B161: ГПБ (ОАО) | C161: ГПБ (ОАО) | D161: ГПБ (ОАО) | E161: ГПБ (ОАО) | F161: ГПБ (ОАО) | G161: 1754 | H161: 1754
B162: ГК "АЛОР" | C162: ГК "АЛОР" | D162: ГК "АЛОР" | E162: ГК "АЛОР" | F162: ГК "АЛОР" | G162: 1255 | H162: 1255
B163: КИТ Финанс (ООО) | C163: КИТ Финанс (ООО) | D163: КИТ Финанс (ООО) | E163: КИТ Финанс (ООО) | F163: КИТ Финанс (ООО) | G163: 1183 | H163: 1183
B166: Ведущие операторы рынка – объем клиентских операций | H166: Таблица 3
B167: (по стоимостному объему сделок, заключенных в интересах клиентов за месяц)
B168: Наименование Участника торгов | G168: Торговый оборот, руб.
B169: ФГ "ОТКРЫТИЕ" | C169: ФГ "ОТКРЫТИЕ" | D169: ФГ "ОТКРЫТИЕ" | E169: ФГ "ОТКРЫТИЕ" | F169: ФГ "ОТКРЫТИЕ" | G169: 2.049979165e+12 | H169: 2.049979165e+12
B170: ФГ БКС | C170: ФГ БКС | D170: ФГ БКС | E170: ФГ БКС | F170: ФГ БКС | G170: 1.254026812e+12 | H170: 1.254026812e+12
B171: ООО "Ренессанс Брокер" | G171: 7.262797062e+11 | H171: 7.262797062e+11
B172: Сбербанк | C172: Сбербанк | D172: Сбербанк | E172: Сбербанк | F172: Сбербанк | G172: 6.09761765e+11 | H172: 6.09761765e+11
B173: ЗАО "ФИНАМ" | C173: ЗАО "ФИНАМ" | D173: ЗАО "ФИНАМ" | E173: ЗАО "ФИНАМ" | F173: ЗАО "ФИНАМ" | G173: 4.315855564e+11 | H173: 4.315855564e+11
B174: ООО "БК РЕГИОН" | C174: ООО "БК РЕГИОН" | D174: ООО "БК РЕГИОН" | E174: ООО "БК РЕГИОН" | F174: ООО "БК РЕГИОН" | G174: 3.999828183e+11 | H174: 3.999828183e+11
B175: ООО "ИК ВЕЛЕС Капитал" | C175: ООО "ИК ВЕЛЕС Капитал" | D175: ООО "ИК ВЕЛЕС Капитал" | E175: ООО "ИК ВЕЛЕС Капитал" | F175: ООО "ИК ВЕЛЕС Капитал" | G175: 3.200941692e+11 | H175: 3.200941692e+11
B176: ОАО "Промсвязьбанк" | C176: ОАО "Промсвязьбанк" | D176: ОАО "Промсвязьбанк" | E176: ОАО "Промсвязьбанк" | F176: ОАО "Промсвязьбанк" | G176: 3.175210103e+11 | H176: 3.175210103e+11
B177: НБ "ТРАСТ" (ОАО) | C177: НБ "ТРАСТ" (ОАО) | D177: НБ "ТРАСТ" (ОАО) | E177: НБ "ТРАСТ" (ОАО) | F177: НБ "ТРАСТ" (ОАО) | G177: 3.101178869e+11 | H177: 3.101178869e+11
B178: ОАО "УБРиР" | C178: ОАО "УБРиР" | D178: ОАО "УБРиР" | E178: ОАО "УБРиР" | F178: ОАО "УБРиР" | G178: 2.566969307e+11 | H178: 2.566969307e+11

Sheet Ноябрь2014
B2: Клиенты Участников торгов Фондовой биржи ММВБ
B3: 2014-11-30
B6: Динамика количества клиентов за | C6: =B3 -> 2014-11-30
B10: Количество зарегистрированных клиентов в Системе торгов (по состоянию на последний день месяца): | H10: Таблица 1
B11: Группы клиентов | E11: 2014-10-30 | F11: =EDATE(E11,1) -> 2014-11-30 | G11: Изменение (ед.) | H11: Изменение (%)
B12: Физические лица | E12: =Октябрь2014!F12 -> 1094834 | F12: 1155712 | G12: =F12-E12 -> 60878 | H12: =F12/E12-1 -> 0.05560477661
B13: Юридические лица | E13: =Октябрь2014!F13 -> 35771 | F13: 35789 | G13: =F13-E13 -> 18 | H13: 0.0005032009169
B14: Нерезиденты | E14: =Октябрь2014!F14 -> 12631 | F14: 12735 | G14: 104 | H14: 0.008233710712
B15: Нерезиденты - физические лица | E15: =Октябрь2014!F15 -> 3076 | F15: 3102 | G15: 26 | H15: 0.008452535761
B16: Нерезиденты - юридические лица | E16: =Октябрь2014!F16 -> 9555 | F16: 9633 | G16: 78 | H16: 0.008163265306
B17: Клиенты, передавшие свои средства в ДУ | E17: =Октябрь2014!F17 -> 13047 | F17: 13100 | G17: 53 | H17: 0.004062236529
B18: Всего | E18: =Октябрь2014!F18 -> 1156283 | F18: 1217336 | G18: 61053 | H18: 0.05280108762
B21: Количество уникальных клиентов в Системе торгов (по состоянию на последний день месяца): | H21: Таблица 2
B22: Группы клиентов | E22: =E11 -> 2014-10-30 | F22: =F11 -> 2014-11-30 | G22: Изменение (ед.) | H22: Изменение (%)
B23: Физические лица | E23: =Октябрь2014!F23 -> 916147 | F23: 921438 | G23: =F23-E23 -> 5291 | H23: =F23/E23-1 -> 0.005775274055
B24: Юридические лица | E24: =Октябрь2014!F24 -> 19927 | F24: 19975 | G24: =F24-E24 -> 48 | H24: =F24/E24-1 -> 0.002408792091
B25: Нерезиденты | E25: =Октябрь2014!F25 -> 7352 | F25: 7368 | G25: 16 | H25: 0.002176278564
B26: Нерезиденты - физические лица | E26: =Октябрь2014!F26 -> 3000 | F26: 3030 | G26: 30 | H26: 0.01
B27: Нерезиденты - юридические лица | E27: =Октябрь2014!F27 -> 4352 | F27: 4338 | G27: -14 | H27: -0.003216911765
B28: Клиенты, передавшие свои средства в ДУ | E28: =Октябрь2014!F28 -> 5159 | F28: 5145 | G28: -14 | H28: -0.002713704206
B29: Всего | E29: =Октябрь2014!F29 -> 948585 | F29: 953926 | G29: 5341 | H29: 0.005630491732
B32: Количество активных клиентов в Системе торгов (совершивших в течение месяца хотя бы одну сделку): | H32: Таблица 3
B33: Группы клиентов | E33: 2014-10-30 | F33: =EDATE(E33,1) -> 2014-11-30 | G33: Изменение (ед.) | H33: Изменение (%)
B34: Физические лица | E34: =Октябрь2014!F34 -> 54686 | F34: 56291 | G34: =F34-E34 -> 1605 | H34: =F34/E34-1 -> 0.02934937644
B35: Юридические лица | E35: =Октябрь2014!F35 -> 1226 | F35: 1113 | G35: -113 | H35: -0.09216965742
B36: Нерезиденты | E36: =Октябрь2014!F36 -> 545 | F36: 537 | G36: -8 | H36: -0.01467889908
B37: Нерезиденты - физические лица | E37: =Октябрь2014!F37 -> 176 | F37: 186 | G37: 10 | H37: 0.05681818182
B38: Нерезиденты - юридические лица | E38: =Октябрь2014!F38 -> 369 | F38: 351 | G38: -18 | H38: -0.0487804878
B39: Клиенты, передавшие свои средства в ДУ | E39: =Октябрь2014!F39 -> 704 | F39: 594 | G39: -110 | H39: -0.15625
B40: Всего | E40: =Октябрь2014!F40 -> 57161 | F40: 58535 | G40: 1374 | H40: 0.02403736814
B44: Изменение количества уникальных клиентов - ретроспективные данные
B48: Количество уникальных клиентов в Системе торгов (по состоянию на последний день месяца) (ежегодная статистика): | H48: Таблица 1
B49: Группы клиентов | E49: 2009-12-31 | F49: 2010-12-31 | G49: 2011-12-31 | H49: 2012-12-31 | I49: 2013-12-31
B50: Физические лица | E50: 671475 | F50: 714295 | G50: 772175 | H50: 805549 | I50: 881844
B51: Юридические лица | E51: 16364 | F51: 17170 | G51: 16850 | H51: 17821 | I51: 19539
B52: Нерезиденты | E52: 3851 | F52: 4295 | G52: 5058 | H52: 5876 | I52: 6957
B53: Клиенты, передавшие свои средства в ДУ | E53: 4717 | F53: 5348 | G53: 5242 | H53: 5261 | I53: 5182
B54: Всего | E54: 696407 | F54: 741108 | G54: 799325 | H54: 834507 | I54: 913522
B82: Количество уникальных клиентов в Системе торгов (по состоянию на последний день месяца) (за последние 6 месяцев): | H82: Таблица 2
B83: Группы клиентов | C83: =EDATE(D83,-1) -> 2014-06-30 | D83: =EDATE(E83,-1) -> 2014-07-30 | E83: =EDATE(F83,-1) -> 2014-08-30 | F83: =EDATE(G83,-1) -> 2014-09-30 | G83: =EDATE(H83,-1) -> 2014-10-30 | H83: =EDATE(E11,1) -> 2014-11-30
B84: Физические лица | C84: 900250 | D84: 901853 | E84: 915943 | F84: 912627 | G84: 916147 | H84: 921438
B85: Юридические лица | C85: 19811 | D85: 19846 | E85: 19872 | F85: 19829 | G85: 19927 | H85: 19975
B86: Нерезиденты | C86: 7125 | D86: 7169 | E86: 7273 | F86: 7332 | G86: 7352 | H86: 7368
B87: Клиенты, передавшие свои средства в ДУ | C87: 5175 | D87: 5207 | E87: 5173 | F87: 5174 | G87: 5159 | H87: 5145
B88: Всего | C88: 932361 | D88: 934075 | E88: 948261 | F88: 944962 | G88: 948585 | H88: 953926
B124: Дополнительные показатели за | C124: Ноябрь 2014
H127: Таблица 1
B128: Участники торгов | G128: Абсолютные показатели
B129: Количество Участников торгов, имеющих активных клиентов | G129: 420
B133: Списки ведущих операторов фондового рынка - клиенты Участников торгов за | F133: =C6 -> 2014-11-30
B136: Ведущие операторы рынка – число зарегистрированных клиентов | H136: Таблица 1
B137: (по общему количеству уникальных клиентов всех типов, зарегистрированных в системе торгов биржи, в том числе в течение месяца)
B138: Наименование Участника торгов | G138: Количество клиентов
B139: ВТБ 24 (ЗАО) | C139: ВТБ 24 (ЗАО) | D139: ВТБ 24 (ЗАО) | E139: ВТБ 24 (ЗАО) | F139: ВТБ 24 (ЗАО) | G139: 211633 | H139: 211633
B140: Сбербанк | C140: Сбербанк | D140: Сбербанк | E140: Сбербанк | F140: Сбербанк | G140: 175528 | H140: 175528
B141: ЗАО "ФИНАМ" | C141: ЗАО "ФИНАМ" | D141: ЗАО "ФИНАМ" | E141: ЗАО "ФИНАМ" | F141: ЗАО "ФИНАМ" | G141: 122130 | H141: 122130
B142: ФГ БКС | C142: ФГ БКС | D142: ФГ БКС | E142: ФГ БКС | F142: ФГ БКС | G142: 118461 | H142: 118461
B143: ОАО "АЛЬФА-БАНК" | C143: ОАО "АЛЬФА-БАНК" | D143: ОАО "АЛЬФА-БАНК" | E143: ОАО "АЛЬФА-БАНК" | F143: ОАО "АЛЬФА-БАНК" | G143: 61312 | H143: 61312
B144: ФГ "ОТКРЫТИЕ" | C144: ФГ "ОТКРЫТИЕ" | D144: ФГ "ОТКРЫТИЕ" | E144: ФГ "ОТКРЫТИЕ" | F144: ФГ "ОТКРЫТИЕ" | G144: 48241 | H144: 48241
B145: ООО "АТОН" | C145: ООО "АТОН" | D145: ООО "АТОН" | E145: ООО "АТОН" | F145: ООО "АТОН" | G145: 45458 | H145: 45458
B146: ГК "АЛОР" | C146: ГК "АЛОР" | D146: ГК "АЛОР" | E146: ГК "АЛОР" | F146: ГК "АЛОР" | G146: 30708 | H146: 30708
B147: КИТ Финанс (ООО) | C147: КИТ Финанс (ООО) | D147: КИТ Финанс (ООО) | E147: КИТ Финанс (ООО) | F147: КИТ Финанс (ООО) | G147: 21082 | H147: 21082
B148: ООО "Инвестиционная палата" | C148: ООО "Инвестиционная палата" | D148: ООО "Инвестиционная палата" | E148: ООО "Инвестиционная палата" | F148: ООО "Инвестиционная палата" | G148: 19701 | H148: 19701
B151: Ведущие операторы рынка – число активных клиентов | H151: Таблица 2
B152: (по количеству уникальных клиентов, совершивших хотя бы одну сделку за месяц)
B153: Наименование Участника торгов | G153: Количество клиентов
B154: Сбербанк | C154: Сбербанк | D154: Сбербанк | E154: Сбербанк | F154: Сбербанк | G154: 10085 | H154: 10085
B155: ЗАО "ФИНАМ" | C155: ЗАО "ФИНАМ" | D155: ЗАО "ФИНАМ" | E155: ЗАО "ФИНАМ" | F155: ЗАО "ФИНАМ" | G155: 8845 | H155: 8845
B156: ФГ БКС | C156: ФГ БКС | D156: ФГ БКС | E156: ФГ БКС | F156: ФГ БКС | G156: 8595 | H156: 8595
B157: ВТБ 24 (ЗАО) | C157: ВТБ 24 (ЗАО) | D157: ВТБ 24 (ЗАО) | E157: ВТБ 24 (ЗАО) | F157: ВТБ 24 (ЗАО) | G157: 6900 | H157: 6900
B158: ФГ "ОТКРЫТИЕ" | C158: ФГ "ОТКРЫТИЕ" | D158: ФГ "ОТКРЫТИЕ" | E158: ФГ "ОТКРЫТИЕ" | F158: ФГ "ОТКРЫТИЕ" | G158: 4390 | H158: 4390
B159: ОАО "АЛЬФА-БАНК" | C159: ОАО "АЛЬФА-БАНК" | D159: ОАО "АЛЬФА-БАНК" | E159: ОАО "АЛЬФА-БАНК" | F159: ОАО "АЛЬФА-БАНК" | G159: 3816 | H159: 3816
B160: ООО "АТОН" | C160: ООО "АТОН" | D160: ООО "АТОН" | E160: ООО "АТОН" | F160: ООО "АТОН" | G160: 2692 | H160: 2692
B161: ГПБ (ОАО) | C161: ГПБ (ОАО) | D161: ГПБ (ОАО) | E161: ГПБ (ОАО) | F161: ГПБ (ОАО) | G161: 1780 | H161: 1780
B162: ГК "АЛОР" | C162: ГК "АЛОР" | D162: ГК "АЛОР" | E162: ГК "АЛОР" | F162: ГК "АЛОР" | G162: 1280 | H162: 1280
B163: КИТ Финанс (ООО) | C163: КИТ Финанс (ООО) | D163: КИТ Финанс (ООО) | E163: КИТ Финанс (ООО) | F163: КИТ Финанс (ООО) | G163: 1234 | H163: 1234
B166: Ведущие операторы рынка – объем клиентских операций | H166: Таблица 3
B167: (по стоимостному объему сделок, заключенных в интересах клиентов за месяц)
B168: Наименование Участника торгов | G168: Торговый оборот, руб.
B169: ФГ "ОТКРЫТИЕ" | C169: ФГ "ОТКРЫТИЕ" | D169: ФГ "ОТКРЫТИЕ" | E169: ФГ "ОТКРЫТИЕ" | F169: ФГ "ОТКРЫТИЕ" | G169: 1.653901224e+12 | H169: 1.653901224e+12
B170: ФГ БКС | C170: ФГ БКС | D170: ФГ БКС | E170: ФГ БКС | F170: ФГ БКС | G170: 1.109340435e+12 | H170: 1.109340435e+12
B171: Сбербанк | C171: Сбербанк | D171: Сбербанк | E171: Сбербанк | F171: Сбербанк | G171: 6.583919381e+11 | H171: 6.583919381e+11
B172: ООО "Ренессанс Брокер" | C172: ООО "Ренессанс Брокер" | D172: ООО "Ренессанс Брокер" | E172: ООО "Ренессанс Брокер" | F172: ООО "Ренессанс Брокер" | G172: 6.438432835e+11 | H172: 6.438432835e+11
B173: ООО "БК РЕГИОН" | C173: ООО "БК РЕГИОН" | D173: ООО "БК РЕГИОН" | E173: ООО "БК РЕГИОН" | F173: ООО "БК РЕГИОН" | G173: 5.500305772e+11 | H173: 5.500305772e+11
B174: ЗАО "ФИНАМ" | C174: ЗАО "ФИНАМ" | D174: ЗАО "ФИНАМ" | E174: ЗАО "ФИНАМ" | F174: ЗАО "ФИНАМ" | G174: 3.385808083e+11 | H174: 3.385808083e+11
B175: ОАО "Промсвязьбанк" | C175: ОАО "Промсвязьбанк" | D175: ОАО "Промсвязьбанк" | E175: ОАО "Промсвязьбанк" | F175: ОАО "Промсвязьбанк" | G175: 3.16610319e+11 | H175: 3.16610319e+11
B176: НБ "ТРАСТ" (ОАО) | C176: НБ "ТРАСТ" (ОАО) | D176: НБ "ТРАСТ" (ОАО) | E176: НБ "ТРАСТ" (ОАО) | F176: НБ "ТРАСТ" (ОАО) | G176: 243916942028 | H176: 243916942028
B177: ООО "ИК ВЕЛЕС Капитал" | C177: ООО "ИК ВЕЛЕС Капитал" | D177: ООО "ИК ВЕЛЕС Капитал" | E177: ООО "ИК ВЕЛЕС Капитал" | F177: ООО "ИК ВЕЛЕС Капитал" | G177: 2.438792626e+11 | H177: 2.438792626e+11
B178: ОАО "УБРиР" | C178: ОАО "УБРиР" | D178: ОАО "УБРиР" | E178: ОАО "УБРиР" | F178: ОАО "УБРиР" | G178: 2.291929699e+11 | H178: 2.291929699e+11

Sheet Декабрь2014
B2: Клиенты Участников торгов Фондовой биржи ММВБ
B3: 2014-12-31
B6: Динамика количества клиентов за | C6: =B3 -> 2014-12-31
B10: Количество зарегистрированных клиентов в Системе торгов (по состоянию на последний день месяца): | H10: Таблица 1
B11: Группы клиентов | E11: 2014-11-30 | F11: =EDATE(E11,1) -> 2014-12-30 | G11: Изменение (ед.) | H11: Изменение (%)
B12: Физические лица | E12: =Ноябрь2014!F12 -> 1155712 | F12: 1129475 | G12: =F12-E12 -> -26237 | H12: =F12/E12-1 -> -0.02270202265
B13: Юридические лица | E13: =Ноябрь2014!F13 -> 35789 | F13: 36085 | G13: =F13-E13 -> 296 | H13: 0.0082706977
B14: Нерезиденты | E14: =Ноябрь2014!F14 -> 12735 | F14: 12793 | G14: 58 | H14: 0.004554377699
B15: Нерезиденты - физические лица | E15: =Ноябрь2014!F15 -> 3102 | F15: 3190 | G15: 88 | H15: 0.02836879433
B16: Нерезиденты - юридические лица | E16: =Ноябрь2014!F16 -> 9633 | F16: 9603 | G16: -30 | H16: -0.003114294612
B17: Клиенты, передавшие свои средства в ДУ | E17: =Ноябрь2014!F17 -> 13100 | F17: 13081 | G17: -19 | H17: -0.001450381679
B18: Всего | E18: =Ноябрь2014!F18 -> 1217336 | F18: 1191434 | G18: -25902 | H18: -0.02127760947
B21: Количество уникальных клиентов в Системе торгов (по состоянию на последний день месяца): | H21: Таблица 2
B22: Группы клиентов | E22: =E11 -> 2014-11-30 | F22: =F11 -> 2014-12-30 | G22: Изменение (ед.) | H22: Изменение (%)
B23: Физические лица | E23: =Ноябрь2014!F23 -> 921438 | F23: 944559 | G23: =F23-E23 -> 23121 | H23: =F23/E23-1 -> 0.02509230138
B24: Юридические лица | E24: =Ноябрь2014!F24 -> 19975 | F24: 20178 | G24: =F24-E24 -> 203 | H24: =F24/E24-1 -> 0.01016270338
B25: Нерезиденты | E25: =Ноябрь2014!F25 -> 7368 | F25: 7486 | G25: 118 | H25: 0.01601520087
B26: Нерезиденты - физические лица | E26: =Ноябрь2014!F26 -> 3030 | F26: 3113 | G26: 83 | H26: 0.02739273927
B27: Нерезиденты - юридические лица | E27: =Ноябрь2014!F27 -> 4338 | F27: 4373 | G27: 35 | H27: 0.008068234209
B28: Клиенты, передавшие свои средства в ДУ | E28: =Ноябрь2014!F28 -> 5145 | F28: 5142 | G28: -3 | H28: -0.000583090379
B29: Всего | E29: =Ноябрь2014!F29 -> 953926 | F29: 977365 | G29: 23439 | H29: 0.02457108832
B32: Количество активных клиентов в Системе торгов (совершивших в течение месяца хотя бы одну сделку): | H32: Таблица 3
B33: Группы клиентов | E33: =E11 -> 2014-11-30 | F33: =F11 -> 2014-12-30 | G33: Изменение (ед.) | H33: Изменение (%)
B34: Физические лица | E34: =Ноябрь2014!F34 -> 56291 | F34: 78587 | G34: =F34-E34 -> 22296 | H34: =F34/E34-1 -> 0.3960846316
B35: Юридические лица | E35: =Ноябрь2014!F35 -> 1113 | F35: 1441 | G35: 328 | H35: 0.2946990117
B36: Нерезиденты | E36: =Ноябрь2014!F36 -> 537 | F36: 668 | G36: 131 | H36: 0.2439478585
B37: Нерезиденты - физические лица | E37: =Ноябрь2014!F37 -> 186 | F37: 268 | G37: 82 | H37: 0.4408602151
B38: Нерезиденты - юридические лица | E38: =Ноябрь2014!F38 -> 351 | F38: 400 | G38: 49 | H38: 0.1396011396
B39: Клиенты, передавшие свои средства в ДУ | E39: =Ноябрь2014!F39 -> 594 | F39: 624 | G39: 30 | H39: 0.05050505051
B40: Всего | E40: =Ноябрь2014!F40 -> 58535 | F40: 81320 | G40: 22785 | H40: 0.3892542923
B44: Изменение количества уникальных клиентов - ретроспективные данные
B48: Количество уникальных клиентов в Системе торгов (по состоянию на последний день месяца) (ежегодная статистика): | H48: Таблица 1
B49: Группы клиентов | E49: 2010-12-31 | F49: 2011-12-31 | G49: 2012-12-31 | H49: 2013-12-31 | I49: 2014-12-31
B50: Физические лица | E50: 714295 | F50: 772175 | G50: 805549 | H50: 881844 | I50: 944559
B51: Юридические лица | E51: 17170 | F51: 16850 | G51: 17821 | H51: 19539 | I51: 20178
B52: Нерезиденты | E52: 4295 | F52: 5058 | G52: 5876 | H52: 6957 | I52: 7486
B53: Клиенты, передавшие свои средства в ДУ | E53: 5348 | F53: 5242 | G53: 5261 | H53: 5182 | I53: 5142
B54: Всего | E54: 741108 | F54: 799325 | G54: 834507 | H54: 913522 | I54: 977365
B82: Количество уникальных клиентов в Системе торгов (по состоянию на последний день месяца) (за последние 6 месяцев): | H82: Таблица 2
B83: Группы клиентов | C83: =EDATE(D83,-1) -> 2014-07-30 | D83: =EDATE(E83,-1) -> 2014-08-30 | E83: =EDATE(F83,-1) -> 2014-09-30 | F83: =EDATE(G83,-1) -> 2014-10-30 | G83: =EDATE(H83,-1) -> 2014-11-30 | H83: =EDATE(E11,1) -> 2014-12-30
B84: Физические лица | C84: 901853 | D84: 915943 | E84: 912627 | F84: 916147 | G84: 921438 | H84: 944559
B85: Юридические лица | C85: 19846 | D85: 19872 | E85: 19829 | F85: 19927 | G85: 19975 | H85: 20178
B86: Нерезиденты | C86: 7169 | D86: 7273 | E86: 7332 | F86: 7352 | G86: 7368 | H86: 7486
B87: Клиенты, передавшие свои средства в ДУ | C87: 5207 | D87: 5173 | E87: 5174 | F87: 5159 | G87: 5145 | H87: 5142
B88: Всего | C88: 934075 | D88: 948261 | E88: 944962 | F88: 948585 | G88: 953926 | H88: 977365
B124: Дополнительные показатели за | C124: =B3 -> 2014-12-31
H127: Таблица 1
B128: Участники торгов | G128: Абсолютные показатели
B129: Количество Участников торгов, имеющих активных клиентов | G129: 429
B133: Списки ведущих операторов фондового рынка - клиенты Участников торгов за | F133: =C6 -> 2014-12-31
B136: Ведущие операторы рынка – число зарегистрированных клиентов | H136: Таблица 1
B137: (по общему количеству уникальных клиентов всех типов, зарегистрированных в системе торгов биржи, в том числе в течение месяца)
B138: Наименование Участника торгов | G138: Количество клиентов
B139: ВТБ 24 (ЗАО) | C139: ВТБ 24 (ЗАО) | D139: ВТБ 24 (ЗАО) | E139: ВТБ 24 (ЗАО) | F139: ВТБ 24 (ЗАО) | G139: 213367 | H139: 213367
B140: Сбербанк | C140: Сбербанк | D140: Сбербанк | E140: Сбербанк | F140: Сбербанк | G140: 178335 | H140: 178335
B141: ЗАО "ФИНАМ" | C141: ЗАО "ФИНАМ" | D141: ЗАО "ФИНАМ" | E141: ЗАО "ФИНАМ" | F141: ЗАО "ФИНАМ" | G141: 124375 | H141: 124375
B142: ФГ БКС | C142: ФГ БКС | D142: ФГ БКС | E142: ФГ БКС | F142: ФГ БКС | G142: 121075 | H142: 121075
B143: ОАО "АЛЬФА-БАНК" | C143: ОАО "АЛЬФА-БАНК" | D143: ОАО "АЛЬФА-БАНК" | E143: ОАО "АЛЬФА-БАНК" | F143: ОАО "АЛЬФА-БАНК" | G143: 61786 | H143: 61786
B144: ФГ "ОТКРЫТИЕ" | C144: ФГ "ОТКРЫТИЕ" | D144: ФГ "ОТКРЫТИЕ" | E144: ФГ "ОТКРЫТИЕ" | F144: ФГ "ОТКРЫТИЕ" | G144: 51209 | H144: 51209
B145: ООО "АТОН" | C145: ООО "АТОН" | D145: ООО "АТОН" | E145: ООО "АТОН" | F145: ООО "АТОН" | G145: 45792 | H145: 45792
B146: ГК "АЛОР" | C146: ГК "АЛОР" | D146: ГК "АЛОР" | E146: ГК "АЛОР" | F146: ГК "АЛОР" | G146: 30858 | H146: 30858
B147: КИТ Финанс (ООО) | C147: КИТ Финанс (ООО) | D147: КИТ Финанс (ООО) | E147: КИТ Финанс (ООО) | F147: КИТ Финанс (ООО) | G147: 21263 | H147: 21263
B148: ООО "Инвестиционная палата" | C148: ООО "Инвестиционная палата" | D148: ООО "Инвестиционная палата" | E148: ООО "Инвестиционная палата" | F148: ООО "Инвестиционная палата" | G148: 19719 | H148: 19719
B151: Ведущие операторы рынка – число активных клиентов | H151: Таблица 2
B152: (по количеству уникальных клиентов, совершивших хотя бы одну сделку за месяц)
B153: Наименование Участника торгов | G153: Количество клиентов
B154: Сбербанк | C154: Сбербанк | D154: Сбербанк | E154: Сбербанк | F154: Сбербанк | G154: 14766 | H154: 14766
B155: ЗАО "ФИНАМ" | C155: ЗАО "ФИНАМ" | D155: ЗАО "ФИНАМ" | E155: ЗАО "ФИНАМ" | F155: ЗАО "ФИНАМ" | G155: 12181 | H155: 12181
B156: ФГ БКС | C156: ФГ БКС | D156: ФГ БКС | E156: ФГ БКС | F156: ФГ БКС | G156: 11659 | H156: 11659
B157: ВТБ 24 (ЗАО) | C157: ВТБ 24 (ЗАО) | D157: ВТБ 24 (ЗАО) | E157: ВТБ 24 (ЗАО) | F157: ВТБ 24 (ЗАО) | G157: 9700 | H157: 9700
B158: ФГ "ОТКРЫТИЕ" | C158: ФГ "ОТКРЫТИЕ" | D158: ФГ "ОТКРЫТИЕ" | E158: ФГ "ОТКРЫТИЕ" | F158: ФГ "ОТКРЫТИЕ" | G158: 6521 | H158: 6521
B159: ОАО "АЛЬФА-БАНК" | C159: ОАО "АЛЬФА-БАНК" | D159: ОАО "АЛЬФА-БАНК" | E159: ОАО "АЛЬФА-БАНК" | F159: ОАО "АЛЬФА-БАНК" | G159: 5337 | H159: 5337
B160: ООО "АТОН" | C160: ООО "АТОН" | D160: ООО "АТОН" | E160: ООО "АТОН" | F160: ООО "АТОН" | G160: 3670 | H160: 3670
B161: ГПБ (ОАО) | C161: ГПБ (ОАО) | D161: ГПБ (ОАО) | E161: ГПБ (ОАО) | F161: ГПБ (ОАО) | G161: 2183 | H161: 2183
B162: ГК "АЛОР" | C162: ГК "АЛОР" | D162: ГК "АЛОР" | E162: ГК "АЛОР" | F162: ГК "АЛОР" | G162: 1789 | H162: 1789
B163: КИТ Финанс (ООО) | C163: КИТ Финанс (ООО) | D163: КИТ Финанс (ООО) | E163: КИТ Финанс (ООО) | F163: КИТ Финанс (ООО) | G163: 1649 | H163: 1649
B166: Ведущие операторы рынка – объем клиентских операций | H166: Таблица 3
B167: (по стоимостному объему сделок, заключенных в интересах клиентов за месяц)
B168: Наименование Участника торгов | G168: Торговый оборот, руб.
B169: ФГ "ОТКРЫТИЕ" | C169: ФГ "ОТКРЫТИЕ" | D169: ФГ "ОТКРЫТИЕ" | E169: ФГ "ОТКРЫТИЕ" | F169: ФГ "ОТКРЫТИЕ" | G169: 1.845659782e+12 | H169: 1.845659782e+12
B170: ФГ БКС | C170: ФГ БКС | D170: ФГ БКС | E170: ФГ БКС | F170: ФГ БКС | G170: 1.499138365e+12 | H170: 1.499138365e+12
B171: Сбербанк | C171: Сбербанк | D171: Сбербанк | E171: Сбербанк | F171: Сбербанк | G171: 8.398414129e+11 | H171: 8.398414129e+11
B172: ООО "Ренессанс Брокер" | C172: ООО "Ренессанс Брокер" | D172: ООО "Ренессанс Брокер" | E172: ООО "Ренессанс Брокер" | F172: ООО "Ренессанс Брокер" | G172: 7.790860823e+11 | H172: 7.790860823e+11
B173: ООО "БК РЕГИОН" | C173: ООО "БК РЕГИОН" | D173: ООО "БК РЕГИОН" | E173: ООО "БК РЕГИОН" | F173: ООО "БК РЕГИОН" | G173: 4.870636794e+11 | H173: 4.870636794e+11
B174: ЗАО "ФИНАМ" | C174: ЗАО "ФИНАМ" | D174: ЗАО "ФИНАМ" | E174: ЗАО "ФИНАМ" | F174: ЗАО "ФИНАМ" | G174: 4.28736816e+11 | H174: 4.28736816e+11
B175: ОАО "Промсвязьбанк" | C175: ОАО "Промсвязьбанк" | D175: ОАО "Промсвязьбанк" | E175: ОАО "Промсвязьбанк" | F175: ОАО "Промсвязьбанк" | G175: 3.653816113e+11 | H175: 3.653816113e+11
B176: ООО "ИК ВЕЛЕС Капитал" | C176: ООО "ИК ВЕЛЕС Капитал" | D176: ООО "ИК ВЕЛЕС Капитал" | E176: ООО "ИК ВЕЛЕС Капитал" | F176: ООО "ИК ВЕЛЕС Капитал" | G176: 2.857118394e+11 | H176: 2.857118394e+11
B177: ОАО "УБРиР" | C177: ОАО "УБРиР" | D177: ОАО "УБРиР" | E177: ОАО "УБРиР" | F177: ОАО "УБРиР" | G177: 2.29850832e+11 | H177: 2.29850832e+11
B178: ОАО Банк "Петрокоммерц" | C178: ОАО Банк "Петрокоммерц" | D178: ОАО Банк "Петрокоммерц" | E178: ОАО Банк "Петрокоммерц" | F178: ОАО Банк "Петрокоммерц" | G178: 2.129710169e+11 | H178: 2.129710169e+11
